Workbook

Sheet DeepSeek蒸馏模型
A1: 模型 | B1: 卡类型 | C1: 卡数 | D1: 数据类型 | E1: vLLM版本 | F1: V0/V1 Engine | G1: Prefix Caching开启 | H1: 输入长度 (tokens) | I1: 输出长度 (tokens) | J1: 并发数 | K1: 平均首字延时 TTFT(ms) | L1: 平均生成时间TPOT(ms) | M1: 生成吞吐量 (tokens/s) | N1: 总吞吐量(tokens/s) | O1: 总耗时 （s) | P1: 单并发Output吞吐 (tokens/s） | Q1: 单并发Decode吞吐（tokens/s) | R1: 镜像 | S1: 硬件平台 | T1: 数据日期 | U1: 数据提供者 | V1: 备注
A2: DeepSeek-R1-Distill-Qwen-14B | B2: BW100 | C2: 1 | D2: float16 | E2: 0.9.2 | F2: V0 | G2: 否 | H2: 512 | I2: 512 | J2: 1 | K2: 128.66 | L2: 36.7 | M2: 27.11 | N2: 54.17 | O2: 18.89 | P2: =M2/J2 -> 27.11 | Q2: =1000/L2 -> 27.2479564 | R2: vllm:0.9.2-ubuntu22.04-dtk25.04.2-1226-das1.7-py3.10-20251226 | S2: Hygon C86 7490 64-core Processor*2 /DDR5 4800 64G*24 /480G 2.5 SATA 6Gb R SSD*2 /960G 2.5 SATA 6Gb R SSD*4/7.68T*4/BCM 9560-8i Tri-Mode RAID x1/双口1G RJ45网卡x1/DCU K100-AI x8(120CU)/MLX MCX653105A-HDAT 1-port 200G HDR QSFP56 HCA*1/2700W电源模块*4 | T2: 2026.02 | U2: 刘玉升
A3: DeepSeek-R1-Distill-Qwen-14B | B3: BW100 | C3: 1 | D3: float16 | E3: 0.9.2 | F3: V0 | G3: 否 | H3: 512 | I3: 512 | J3: 4 | K3: 304.35 | L3: 41.11 | M3: 96.08 | N3: 191.97 | O3: 21.32 | P3: 24.02 | Q3: 24.32498176 | T3: 2026.02 | U3: 刘玉升
A4: DeepSeek-R1-Distill-Qwen-14B | B4: BW100 | C4: 1 | D4: float16 | E4: 0.9.2 | F4: V0 | G4: 否 | H4: 512 | I4: 512 | J4: 8 | K4: 553.11 | L4: 45.18 | M4: 173.25 | N4: 346.11 | O4: 23.64 | P4: 21.65625 | Q4: 22.13368747 | T4: 2026.02 | U4: 刘玉升
A5: DeepSeek-R1-Distill-Qwen-14B | B5: BW100 | C5: 1 | D5: float16 | E5: 0.9.2 | F5: V0 | G5: 否 | H5: 512 | I5: 512 | J5: 16 | K5: 897.93 | L5: 60 | M5: 259.55 | N5: 518.53 | O5: 31.56 | P5: 16.221875 | Q5: 16.66666667 | T5: 2026.02 | U5: 刘玉升
A6: DeepSeek-R1-Distill-Qwen-14B | B6: BW100 | C6: 1 | D6: float16 | E6: 0.9.2 | F6: V0 | G6: 否 | H6: 512 | I6: 512 | J6: 32 | K6: 2131.83 | L6: 61.88 | M6: 485.27 | N6: 969.54 | O6: 33.76 | P6: 15.1646875 | Q6: 16.16031028 | T6: 2026.02 | U6: 刘玉升
A7: DeepSeek-R1-Distill-Qwen-14B | B7: BW100 | C7: 1 | D7: float16 | E7: 0.9.2 | F7: V0 | G7: 否 | H7: 512 | I7: 512 | J7: 64 | K7: 4313.35 | L7: 107.45 | M7: 553.14 | N7: 1105.17 | O7: 59.24 | P7: 8.6428125 | Q7: 9.306654258 | T7: 2026.02 | U7: 刘玉升
A8: DeepSeek-R1-Distill-Qwen-14B | B8: BW100 | C8: 1 | D8: float16 | E8: 0.9.2 | F8: V0 | G8: 否 | H8: 512 | I8: 512 | J8: 128 | K8: 6725.77 | L8: 188.95 | M8: 634.36 | N8: 1267.28 | O8: 103.31 | P8: 4.9559375 | Q8: 5.292405398 | T8: 2026.02 | U8: 刘玉升
A9: DeepSeek-R1-Distill-Qwen-14B | B9: BW100 | C9: 1 | D9: float16 | E9: 0.9.2 | F9: V0 | G9: 否 | H9: 1024 | I9: 1024 | J9: 1 | K9: 191.01 | L9: 36.69 | M9: 27.15 | N9: 54.26 | O9: 37.72 | P9: 27.15 | Q9: 27.25538294 | T9: 2026.02 | U9: 刘玉升
A10: DeepSeek-R1-Distill-Qwen-14B | B10: BW100 | C10: 1 | D10: float16 | E10: 0.9.2 | F10: V0 | G10: 否 | H10: 1024 | I10: 1024 | J10: 4 | K10: 553.84 | L10: 41.43 | M10: 95.38 | N10: 190.67 | O10: 42.94 | P10: 23.845 | Q10: 24.13709872 | T10: 2026.02 | U10: 刘玉升
A11: DeepSeek-R1-Distill-Qwen-14B | B11: BW100 | C11: 1 | D11: float16 | E11: 0.9.2 | F11: V0 | G11: 否 | H11: 1024 | I11: 1024 | J11: 8 | K11: 876.33 | L11: 45.69 | M11: 172.03 | N11: 343.86 | O11: 47.62 | P11: 21.50375 | Q11: 21.88662727 | T11: 2026.02 | U11: 刘玉升
A12: DeepSeek-R1-Distill-Qwen-14B | B12: BW100 | C12: 1 | D12: float16 | E12: 0.9.2 | F12: V0 | G12: 否 | H12: 1024 | I12: 1024 | J12: 16 | K12: 1951.52 | L12: 60.4 | M12: 257 | N12: 513.44 | O12: 63.75 | P12: 16.0625 | Q12: 16.55629139 | T12: 2026.02 | U12: 刘玉升
A13: DeepSeek-R1-Distill-Qwen-14B | B13: BW100 | C13: 1 | D13: float16 | E13: 0.9.2 | F13: V0 | G13: 否 | H13: 1024 | I13: 1024 | J13: 32 | K13: 4300.65 | L13: 63 | M13: 476.59 | N13: 952.41 | O13: 68.76 | P13: 14.8934375 | Q13: 15.87301587 | T13: 2026.02 | U13: 刘玉升
A14: DeepSeek-R1-Distill-Qwen-14B | B14: BW100 | C14: 1 | D14: float16 | E14: 0.9.2 | F14: V0 | G14: 否 | H14: 1024 | I14: 1024 | J14: 64 | K14: 6573.38 | L14: 110.06 | M14: 549.87 | N14: 1097.34 | O14: 119.18 | P14: 8.59171875 | Q14: 9.085953116 | T14: 2026.02 | U14: 刘玉升
A15: DeepSeek-R1-Distill-Qwen-14B | B15: BW100 | C15: 1 | D15: float16 | E15: 0.9.2 | F15: V0 | G15: 否 | H15: 1024 | I15: 1024 | J15: 128 | K15: 11172.87 | L15: 190.15 | M15: 508.2 | N15: 1014.64 | O15: 257.91 | P15: 3.9703125 | Q15: 5.259006048 | T15: 2026.02 | U15: 刘玉升
A16: DeepSeek-R1-Distill-Qwen-14B | B16: BW100 | C16: 1 | D16: float16 | E16: 0.9.2 | F16: V0 | G16: 否 | H16: 2048 | I16: 2048 | J16: 1 | K16: 346.68 | L16: 36.79 | M16: 27.07 | N16: 54.12 | O16: 75.67 | P16: 27.07 | Q16: 27.18129927 | T16: 2026.02 | U16: 刘玉升
A17: DeepSeek-R1-Distill-Qwen-14B | B17: BW100 | C17: 1 | D17: float16 | E17: 0.9.2 | F17: V0 | G17: 否 | H17: 2048 | I17: 2048 | J17: 4 | K17: 854.28 | L17: 41.88 | M17: 94.6 | N17: 189.16 | O17: 86.59 | P17: 23.65 | Q17: 23.87774594 | T17: 2026.02 | U17: 刘玉升
A18: DeepSeek-R1-Distill-Qwen-14B | B18: BW100 | C18: 1 | D18: float16 | E18: 0.9.2 | F18: V0 | G18: 否 | H18: 2048 | I18: 2048 | J18: 8 | K18: 1992.42 | L18: 46.13 | M18: 169.93 | N18: 339.27 | O18: 96.42 | P18: 21.24125 | Q18: 21.6778669 | T18: 2026.02 | U18: 刘玉升
A19: DeepSeek-R1-Distill-Qwen-14B | B19: BW100 | C19: 1 | D19: float16 | E19: 0.9.2 | F19: V0 | G19: 否 | H19: 2048 | I19: 2048 | J19: 16 | K19: 4259.8 | L19: 60.88 | M19: 254.25 | N19: 506.68 | O19: 128.88 | P19: 15.890625 | Q19: 16.42575558 | T19: 2026.02 | U19: 刘玉升
A20: DeepSeek-R1-Distill-Qwen-14B | B20: BW100 | C20: 1 | D20: float16 | E20: 0.9.2 | F20: V0 | G20: 否 | H20: 2048 | I20: 2048 | J20: 32 | K20: 6678.49 | L20: 64.63 | M20: 471.5 | N20: 940.82 | O20: 138.99 | P20: 14.734375 | Q20: 15.4726907 | T20: 2026.02 | U20: 刘玉升
A21: DeepSeek-R1-Distill-Qwen-14B | B21: BW100 | C21: 1 | D21: float16 | E21: 0.9.2 | F21: V0 | G21: 否 | H21: 2048 | I21: 2048 | J21: 64 | K21: 11301.06 | L21: 116.33 | M21: 397.95 | N21: 793.97 | O21: 329.37 | P21: 6.21796875 | Q21: 8.596234849 | T21: 2026.02 | U21: 刘玉升
A22: DeepSeek-R1-Distill-Qwen-14B | B22: BW100 | C22: 1 | D22: float16 | E22: 0.9.2 | F22: V0 | G22: 否 | H22: 2048 | I22: 2048 | J22: 128 | K22: 152296.93 | L22: 120.16 | M22: 441.59 | N22: 881.53 | O22: 593.64 | P22: 3.449921875 | Q22: 8.322237017 | T22: 2026.02 | U22: 刘玉升
A23: DeepSeek-R1-Distill-Qwen-14B | B23: BW100 | C23: 1 | D23: float16 | E23: 0.9.2 | F23: V0 | G23: 否 | H23: 4096 | I23: 1024 | J23: 1 | K23: 593.75 | L23: 36.88 | M23: 26.72 | N23: 133.58 | O23: 38.32 | P23: 26.72 | Q23: 27.11496746 | T23: 2026.02 | U23: 刘玉升
A24: DeepSeek-R1-Distill-Qwen-14B | B24: BW100 | C24: 1 | D24: float16 | E24: 0.9.2 | F24: V0 | G24: 否 | H24: 4096 | I24: 1024 | J24: 4 | K24: 1886.68 | L24: 43.64 | M24: 88.04 | N24: 439.92 | O24: 46.53 | P24: 22.01 | Q24: 22.9147571 | T24: 2026.02 | U24: 刘玉升
A25: DeepSeek-R1-Distill-Qwen-14B | B25: BW100 | C25: 1 | D25: float16 | E25: 0.9.2 | F25: V0 | G25: 否 | H25: 4096 | I25: 1024 | J25: 8 | K25: 4192.95 | L25: 49.82 | M25: 148.51 | N25: 742.26 | O25: 55.16 | P25: 18.56375 | Q25: 20.07226014 | T25: 2026.02 | U25: 刘玉升
A26: DeepSeek-R1-Distill-Qwen-14B | B26: BW100 | C26: 1 | D26: float16 | E26: 0.9.2 | F26: V0 | G26: 否 | H26: 4096 | I26: 1024 | J26: 16 | K26: 6834.12 | L26: 69.22 | M26: 210.98 | N26: 1052.74 | O26: 77.66 | P26: 13.18625 | Q26: 14.44669171 | T26: 2026.02 | U26: 刘玉升
A27: DeepSeek-R1-Distill-Qwen-14B | B27: BW100 | C27: 1 | D27: float16 | E27: 0.9.2 | F27: V0 | G27: 否 | H27: 4096 | I27: 1024 | J27: 32 | K27: 11715.21 | L27: 81.52 | M27: 317.49 | N27: 1585.65 | O27: 103.21 | P27: 9.9215625 | Q27: 12.26692836 | T27: 2026.02 | U27: 刘玉升
A28: DeepSeek-R1-Distill-Qwen-14B | B28: BW100 | C28: 1 | D28: float16 | E28: 0.9.2 | F28: V0 | G28: 否 | H28: 4096 | I28: 1024 | J28: 64 | K28: 59627.96 | L28: 98.06 | M28: 311 | N28: 1552.66 | O28: 210.73 | P28: 4.859375 | Q28: 10.19783806 | T28: 2026.02 | U28: 刘玉升
A29: DeepSeek-R1-Distill-Qwen-14B | B29: BW100 | C29: 1 | D29: float16 | E29: 0.9.2 | F29: V0 | G29: 否 | H29: 4096 | I29: 1024 | J29: 128 | K29: 168097.45 | L29: 100.58 | M29: 304.63 | N29: 1521.04 | O29: 430.26 | P29: 2.379921875 | Q29: 9.94233446 | T29: 2026.02 | U29: 刘玉升
A30: DeepSeek-R1-Distill-Qwen-14B | B30: BW100 | C30: 1 | D30: float16 | E30: 0.9.2 | F30: V0 | G30: 否 | H30: 16384 | I30: 1024 | J30: 1 | K30: 3043.93 | L30: 37.18 | M30: 24.93 | N30: 423.75 | O30: 41.08 | P30: 24.93 | Q30: 26.89618074 | T30: 2026.02 | U30: 刘玉升
A31: DeepSeek-R1-Distill-Qwen-14B | B31: BW100 | C31: 1 | D31: float16 | E31: 0.9.2 | F31: V0 | G31: 否 | H31: 16384 | I31: 1024 | J31: 4 | K31: 8350.62 | L31: 55.18 | M31: 63.21 | N31: 1074.44 | O31: 64.8 | P31: 15.8025 | Q31: 18.12250816 | T31: 2026.02 | U31: 刘玉升
A32: DeepSeek-R1-Distill-Qwen-14B | B32: BW100 | C32: 1 | D32: float16 | E32: 0.9.2 | F32: V0 | G32: 否 | H32: 16384 | I32: 1024 | J32: 8 | K32: 14799.76 | L32: 74.13 | M32: 90.38 | N32: 1536.33 | O32: 90.64 | P32: 11.2975 | Q32: 13.48981519 | T32: 2026.02 | U32: 刘玉升
A33: DeepSeek-R1-Distill-Qwen-14B | B33: BW100 | C33: 1 | D33: float16 | E33: 0.9.2 | F33: V0 | G33: 否 | H33: 16384 | I33: 1024 | J33: 16 | K33: 62266 | L33: 80.4 | M33: 85.33 | N33: 1450.52 | O33: 192.01 | P33: 5.333125 | Q33: 12.43781095 | T33: 2026.02 | U33: 刘玉升
A34: DeepSeek-R1-Distill-Qwen-14B | B34: BW100 | C34: 1 | D34: float16 | E34: 0.9.2 | F34: V0 | G34: 否 | H34: 16384 | I34: 1024 | J34: 32 | K34: 156791.83 | L34: 84.53 | M34: 82.95 | N34: 1410.05 | O34: 395.04 | P34: 2.5921875 | Q34: 11.83011948 | T34: 2026.02 | U34: 刘玉升
A35: DeepSeek-R1-Distill-Qwen-14B | B35: BW100 | C35: 1 | D35: float16 | E35: 0.9.2 | F35: V0 | G35: 否 | H35: 16384 | I35: 1024 | J35: 64 | K35: 346458.03 | L35: 88.19 | M35: 82.45 | N35: 1401.64 | O35: 794.82 | P35: 1.28828125 | Q35: 11.3391541 | T35: 2026.02 | U35: 刘玉升
A36: DeepSeek-R1-Distill-Qwen-14B | B36: BW100 | C36: 1 | D36: float16 | E36: 0.9.2 | F36: V0 | G36: 否 | H36: 16384 | I36: 1024 | J36: 128 | K36: 728732.68 | L36: 88.21 | M36: 84.36 | N36: 1434.07 | O36: 1553.69 | P36: 0.6590625 | Q36: 11.33658315 | T36: 2026.02 | U36: 刘玉升
A37: DeepSeek-R1-Distill-Qwen-14B | B37: BW100 | C37: 2 | D37: float16 | E37: 0.9.2 | F37: V0 | G37: 否 | H37: 512 | I37: 512 | J37: 1 | K37: 100.27 | L37: 26.16 | M37: 38.01 | N37: 75.95 | O37: 13.47 | P37: 38.01 | Q37: 38.22629969 | T37: 2026.02 | U37: 刘玉升
A38: DeepSeek-R1-Distill-Qwen-14B | B38: BW100 | C38: 2 | D38: float16 | E38: 0.9.2 | F38: V0 | G38: 否 | H38: 512 | I38: 512 | J38: 4 | K38: 230.11 | L38: 31.12 | M38: 126.96 | N38: 253.66 | O38: 16.13 | P38: 31.74 | Q38: 32.13367609 | T38: 2026.02 | U38: 刘玉升
A39: DeepSeek-R1-Distill-Qwen-14B | B39: BW100 | C39: 2 | D39: float16 | E39: 0.9.2 | F39: V0 | G39: 否 | H39: 512 | I39: 512 | J39: 8 | K39: 350.82 | L39: 35.98 | M39: 218.55 | N39: 436.62 | O39: 18.74 | P39: 27.31875 | Q39: 27.79321845 | T39: 2026.02 | U39: 刘玉升
A40: DeepSeek-R1-Distill-Qwen-14B | B40: BW100 | C40: 2 | D40: float16 | E40: 0.9.2 | F40: V0 | G40: 否 | H40: 512 | I40: 512 | J40: 16 | K40: 765.74 | L40: 39.47 | M40: 391.24 | N40: 781.62 | O40: 20.94 | P40: 24.4525 | Q40: 25.335698 | T40: 2026.02 | U40: 刘玉升
A41: DeepSeek-R1-Distill-Qwen-14B | B41: BW100 | C41: 2 | D41: float16 | E41: 0.9.2 | F41: V0 | G41: 否 | H41: 512 | I41: 512 | J41: 32 | K41: 1495.04 | L41: 46.41 | M41: 649.66 | N41: 1297.96 | O41: 25.22 | P41: 20.301875 | Q41: 21.54708037 | T41: 2026.02 | U41: 刘玉升
A42: DeepSeek-R1-Distill-Qwen-14B | B42: BW100 | C42: 2 | D42: float16 | E42: 0.9.2 | F42: V0 | G42: 否 | H42: 512 | I42: 512 | J42: 64 | K42: 2874.48 | L42: 61.69 | M42: 952.21 | N42: 1902.51 | O42: 34.41 | P42: 14.87828125 | Q42: 16.21008267 | T42: 2026.02 | U42: 刘玉升
A43: DeepSeek-R1-Distill-Qwen-14B | B43: BW100 | C43: 2 | D43: float16 | E43: 0.9.2 | F43: V0 | G43: 否 | H43: 512 | I43: 512 | J43: 128 | K43: 4367.61 | L43: 103.82 | M43: 1140.79 | N43: 2278.96 | O43: 57.45 | P43: 8.912421875 | Q43: 9.632055481 | T43: 2026.02 | U43: 刘玉升
A44: DeepSeek-R1-Distill-Qwen-14B | B44: BW100 | C44: 2 | D44: float16 | E44: 0.9.2 | F44: V0 | G44: 否 | H44: 1024 | I44: 1024 | J44: 1 | K44: 144.33 | L44: 26.72 | M44: 37.27 | N44: 74.5 | O44: 27.48 | P44: 37.27 | Q44: 37.4251497 | T44: 2026.02 | U44: 刘玉升
A45: DeepSeek-R1-Distill-Qwen-14B | B45: BW100 | C45: 2 | D45: float16 | E45: 0.9.2 | F45: V0 | G45: 否 | H45: 1024 | I45: 1024 | J45: 4 | K45: 380.06 | L45: 32.22 | M45: 122.85 | N45: 245.57 | O45: 33.34 | P45: 30.7125 | Q45: 31.03662322 | T45: 2026.02 | U45: 刘玉升
A46: DeepSeek-R1-Distill-Qwen-14B | B46: BW100 | C46: 2 | D46: float16 | E46: 0.9.2 | F46: V0 | G46: 否 | H46: 1024 | I46: 1024 | J46: 8 | K46: 669.37 | L46: 36.92 | M46: 213.12 | N46: 426 | O46: 38.44 | P46: 26.64 | Q46: 27.08559047 | T46: 2026.02 | U46: 刘玉升
A47: DeepSeek-R1-Distill-Qwen-14B | B47: BW100 | C47: 2 | D47: float16 | E47: 0.9.2 | F47: V0 | G47: 否 | H47: 1024 | I47: 1024 | J47: 16 | K47: 1431.51 | L47: 39.91 | M47: 387.69 | N47: 774.53 | O47: 42.26 | P47: 24.230625 | Q47: 25.05637685 | T47: 2026.02 | U47: 刘玉升
A48: DeepSeek-R1-Distill-Qwen-14B | B48: BW100 | C48: 2 | D48: float16 | E48: 0.9.2 | F48: V0 | G48: 否 | H48: 1024 | I48: 1024 | J48: 32 | K48: 2873.77 | L48: 47.58 | M48: 635.55 | N48: 1270.08 | O48: 51.56 | P48: 19.8609375 | Q48: 21.01723413 | T48: 2026.02 | U48: 刘玉升
A49: DeepSeek-R1-Distill-Qwen-14B | B49: BW100 | C49: 2 | D49: float16 | E49: 0.9.2 | F49: V0 | G49: 否 | H49: 1024 | I49: 1024 | J49: 64 | K49: 4376.04 | L49: 64.39 | M49: 932.7 | N49: 1861.32 | O49: 70.26 | P49: 14.5734375 | Q49: 15.53036186 | T49: 2026.02 | U49: 刘玉升
A50: DeepSeek-R1-Distill-Qwen-14B | B50: BW100 | C50: 2 | D50: float16 | E50: 0.9.2 | F50: V0 | G50: 否 | H50: 1024 | I50: 1024 | J50: 128 | K50: 7327.28 | L50: 106.49 | M50: 1127.04 | N50: 2250.17 | O50: 116.3 | P50: 8.805 | Q50: 9.390553104 | T50: 2026.02 | U50: 刘玉升
A51: DeepSeek-R1-Distill-Qwen-14B | B51: BW100 | C51: 2 | D51: float16 | E51: 0.9.2 | F51: V0 | G51: 否 | H51: 2048 | I51: 2048 | J51: 1 | K51: 235.09 | L51: 27.09 | M51: 36.78 | N51: 73.54 | O51: 55.68 | P51: 36.78 | Q51: 36.9139904 | T51: 2026.02 | U51: 刘玉升
A52: DeepSeek-R1-Distill-Qwen-14B | B52: BW100 | C52: 2 | D52: float16 | E52: 0.9.2 | F52: V0 | G52: 否 | H52: 2048 | I52: 2048 | J52: 4 | K52: 681.15 | L52: 32.79 | M52: 120.83 | N52: 241.6 | O52: 67.8 | P52: 30.2075 | Q52: 30.49710278 | T52: 2026.02 | U52: 刘玉升
A53: DeepSeek-R1-Distill-Qwen-14B | B53: BW100 | C53: 2 | D53: float16 | E53: 0.9.2 | F53: V0 | G53: 否 | H53: 2048 | I53: 2048 | J53: 8 | K53: 1386.65 | L53: 37.74 | M53: 208.35 | N53: 415.97 | O53: 78.64 | P53: 26.04375 | Q53: 26.49708532 | T53: 2026.02 | U53: 刘玉升
A54: DeepSeek-R1-Distill-Qwen-14B | B54: BW100 | C54: 2 | D54: float16 | E54: 0.9.2 | F54: V0 | G54: 否 | H54: 2048 | I54: 2048 | J54: 16 | K54: 2834.2 | L54: 40.95 | M54: 378.07 | N54: 753.44 | O54: 86.67 | P54: 23.629375 | Q54: 24.42002442 | T54: 2026.02 | U54: 刘玉升
A55: DeepSeek-R1-Distill-Qwen-14B | B55: BW100 | C55: 2 | D55: float16 | E55: 0.9.2 | F55: V0 | G55: 否 | H55: 2048 | I55: 2048 | J55: 32 | K55: 4405.95 | L55: 49.22 | M55: 623.16 | N55: 1243.43 | O55: 105.17 | P55: 19.47375 | Q55: 20.31694433 | T55: 2026.02 | U55: 刘玉升
A56: DeepSeek-R1-Distill-Qwen-14B | B56: BW100 | C56: 2 | D56: float16 | E56: 0.9.2 | F56: V0 | G56: 否 | H56: 2048 | I56: 2048 | J56: 64 | K56: 7426.44 | L56: 66.54 | M56: 912.42 | N56: 1820.42 | O56: 143.65 | P56: 14.2565625 | Q56: 15.02855425 | T56: 2026.02 | U56: 刘玉升
A57: DeepSeek-R1-Distill-Qwen-14B | B57: BW100 | C57: 2 | D57: float16 | E57: 0.9.2 | F57: V0 | G57: 否 | H57: 2048 | I57: 2048 | J57: 128 | K57: 13313.8 | L57: 110.55 | M57: 1011.87 | N57: 2019.97 | O57: 259.07 | P57: 7.905234375 | Q57: 9.045680687 | T57: 2026.02 | U57: 刘玉升
A58: DeepSeek-R1-Distill-Qwen-14B | B58: BW100 | C58: 2 | D58: float16 | E58: 0.9.2 | F58: V0 | G58: 否 | H58: 4096 | I58: 1024 | J58: 1 | K58: 436.44 | L58: 27.8 | M58: 35.46 | N58: 177.26 | O58: 28.88 | P58: 35.46 | Q58: 35.97122302 | T58: 2026.02 | U58: 刘玉升
A59: DeepSeek-R1-Distill-Qwen-14B | B59: BW100 | C59: 2 | D59: float16 | E59: 0.9.2 | F59: V0 | G59: 否 | H59: 4096 | I59: 1024 | J59: 4 | K59: 1314.3 | L59: 33.8 | M59: 114.13 | N59: 570.3 | O59: 35.89 | P59: 28.5325 | Q59: 29.58579882 | T59: 2026.02 | U59: 刘玉升
A60: DeepSeek-R1-Distill-Qwen-14B | B60: BW100 | C60: 2 | D60: float16 | E60: 0.9.2 | F60: V0 | G60: 否 | H60: 4096 | I60: 1024 | J60: 8 | K60: 2784.49 | L60: 40.11 | M60: 186.97 | N60: 934.46 | O60: 43.82 | P60: 23.37125 | Q60: 24.93143854 | T60: 2026.02 | U60: 刘玉升
A61: DeepSeek-R1-Distill-Qwen-14B | B61: BW100 | C61: 2 | D61: float16 | E61: 0.9.2 | F61: V0 | G61: 否 | H61: 4096 | I61: 1024 | J61: 16 | K61: 4503.44 | L61: 46.2 | M61: 316.44 | N61: 1578.94 | O61: 51.78 | P61: 19.7775 | Q61: 21.64502165 | T61: 2026.02 | U61: 刘玉升
A62: DeepSeek-R1-Distill-Qwen-14B | B62: BW100 | C62: 2 | D62: float16 | E62: 0.9.2 | F62: V0 | G62: 否 | H62: 4096 | I62: 1024 | J62: 32 | K62: 7634.88 | L62: 59.9 | M62: 475.46 | N62: 2374.64 | O62: 68.92 | P62: 14.858125 | Q62: 16.69449082 | T62: 2026.02 | U62: 刘玉升
A63: DeepSeek-R1-Distill-Qwen-14B | B63: BW100 | C63: 2 | D63: float16 | E63: 0.9.2 | F63: V0 | G63: 否 | H63: 4096 | I63: 1024 | J63: 64 | K63: 13798.02 | L63: 88.26 | M63: 629.5 | N63: 3142.8 | O63: 104.11 | P63: 9.8359375 | Q63: 11.33016089 | T63: 2026.02 | U63: 刘玉升
A64: DeepSeek-R1-Distill-Qwen-14B | B64: BW100 | C64: 2 | D64: float16 | E64: 0.9.2 | F64: V0 | G64: 否 | H64: 4096 | I64: 1024 | J64: 128 | K64: 40198.79 | L64: 126.82 | M64: 590.7 | N64: 2949.37 | O64: 221.89 | P64: 4.61484375 | Q64: 7.88519161 | T64: 2026.02 | U64: 刘玉升
A65: DeepSeek-R1-Distill-Qwen-14B | B65: BW100 | C65: 2 | D65: float16 | E65: 0.9.2 | F65: V0 | G65: 否 | H65: 16384 | I65: 1024 | J65: 1 | K65: 2011.48 | L65: 28.54 | M65: 32.81 | N65: 557.77 | O65: 31.21 | P65: 32.81 | Q65: 35.0385424 | T65: 2026.02 | U65: 刘玉升
A66: DeepSeek-R1-Distill-Qwen-14B | B66: BW100 | C66: 2 | D66: float16 | E66: 0.9.2 | F66: V0 | G66: 否 | H66: 16384 | I66: 1024 | J66: 4 | K66: 5314.29 | L66: 38.96 | M66: 90.68 | N66: 1541.4 | O66: 45.17 | P66: =M66/J66 -> 22.67 | Q66: =1000/L66 -> 25.66735113 | T66: 2026.02 | U66: 刘玉升
A67: DeepSeek-R1-Distill-Qwen-14B | B67: BW100 | C67: 2 | D67: float16 | E67: 0.9.2 | F67: V0 | G67: 否 | H67: 16384 | I67: 1024 | J67: 8 | K67: 9308.88 | L67: 53.43 | M67: 128.06 | N67: 2176.85 | O67: 63.97 | P67: 16.0075 | Q67: 18.71607711 | T67: 2026.02 | U67: 刘玉升
A68: DeepSeek-R1-Distill-Qwen-14B | B68: BW100 | C68: 2 | D68: float16 | E68: 0.9.2 | F68: V0 | G68: 否 | H68: 16384 | I68: 1024 | J68: 16 | K68: 16952.03 | L68: 73.07 | M68: 178.65 | N68: 3036.9 | O68: 91.71 | P68: 11.165625 | Q68: 13.68550705 | T68: 2026.02 | U68: 刘玉升
A69: DeepSeek-R1-Distill-Qwen-14B | B69: BW100 | C69: 2 | D69: float16 | E69: 0.9.2 | F69: V0 | G69: 否 | H69: 16384 | I69: 1024 | J69: 32 | K69: 42320.85 | L69: 95.78 | M69: 178.15 | N69: 3028.4 | O69: 183.93 | P69: 5.5671875 | Q69: 10.44059303 | T69: 2026.02 | U69: 刘玉升
A70: DeepSeek-R1-Distill-Qwen-14B | B70: BW100 | C70: 2 | D70: float16 | E70: 0.9.2 | F70: V0 | G70: 否 | H70: 16384 | I70: 1024 | J70: 64 | K70: 120254.03 | L70: 98.4 | M70: 195.23 | N70: 3318.65 | O70: 335.69 | P70: 3.05046875 | Q70: 10.16260163 | T70: 2026.02 | U70: 刘玉升
A71: DeepSeek-R1-Distill-Qwen-14B | B71: BW100 | C71: 2 | D71: float16 | E71: 0.9.2 | F71: V0 | G71: 否 | H71: 16384 | I71: 1024 | J71: 128 | K71: 274643.03 | L71: 101.65 | M71: 207.1 | N71: 3520.42 | O71: 632.91 | P71: 1.61796875 | Q71: 9.837678308 | T71: 2026.02 | U71: 刘玉升
A72: DeepSeek-R1-Distill-Qwen-32B | B72: BW100 | C72: 2 | D72: float16 | E72: 0.9.2 | F72: V0 | G72: 否 | H72: 512 | I72: 512 | J72: 1 | K72: 187.49 | L72: 46.6 | M72: 21.33 | N72: 42.62 | O72: 24 | P72: 21.33 | Q72: 21.45922747 | R72: vllm:0.9.2-ubuntu22.04-dtk25.04.2-1226-das1.7-py3.10-20251226 | S72: Hygon C86 7490 64-core Processor*2 /DDR5 4800 64G*24 /480G 2.5 SATA 6Gb R SSD*2 /960G 2.5 SATA 6Gb R SSD*4/7.68T*4/BCM 9560-8i Tri-Mode RAID x1/双口1G RJ45网卡x1/DCU K100-AI x8(120CU)/MLX MCX653105A-HDAT 1-port 200G HDR QSFP56 HCA*1/2700W电源模块*4 | T72: 2026.02 | U72: 刘玉升
A73: DeepSeek-R1-Distill-Qwen-32B | B73: BW100 | C73: 2 | D73: float16 | E73: 0.9.2 | F73: V0 | G73: 否 | H73: 512 | I73: 512 | J73: 4 | K73: 428.95 | L73: 57.78 | M73: 68.37 | N73: 136.6 | O73: 29.96 | P73: 17.0925 | Q73: 17.30702665 | T73: 2026.02 | U73: 刘玉升
A74: DeepSeek-R1-Distill-Qwen-32B | B74: BW100 | C74: 2 | D74: float16 | E74: 0.9.2 | F74: V0 | G74: 否 | H74: 512 | I74: 512 | J74: 8 | K74: 757.68 | L74: 57.93 | M74: 134.91 | N74: 269.53 | O74: 30.36 | P74: 16.86375 | Q74: 17.26221302 | T74: 2026.02 | U74: 刘玉升
A75: DeepSeek-R1-Distill-Qwen-32B | B75: BW100 | C75: 2 | D75: float16 | E75: 0.9.2 | F75: V0 | G75: 否 | H75: 512 | I75: 512 | J75: 16 | K75: 1312.34 | L75: 73 | M75: 212.12 | N75: 423.78 | O75: 38.62 | P75: 13.2575 | Q75: 13.69863014 | T75: 2026.02 | U75: 刘玉升
A76: DeepSeek-R1-Distill-Qwen-32B | B76: BW100 | C76: 2 | D76: float16 | E76: 0.9.2 | F76: V0 | G76: 否 | H76: 512 | I76: 512 | J76: 32 | K76: 2662 | L76: 67.59 | M76: 440.31 | N76: 879.7 | O76: 37.21 | P76: 13.7596875 | Q76: 14.79508803 | T76: 2026.02 | U76: 刘玉升
A77: DeepSeek-R1-Distill-Qwen-32B | B77: BW100 | C77: 2 | D77: float16 | E77: 0.9.2 | F77: V0 | G77: 否 | H77: 512 | I77: 512 | J77: 64 | K77: 5485.8 | L77: 108.7 | M77: 536.78 | N77: 1072.47 | O77: 61.05 | P77: 8.3871875 | Q77: 9.199632015 | T77: 2026.02 | U77: 刘玉升
A78: DeepSeek-R1-Distill-Qwen-32B | B78: BW100 | C78: 2 | D78: float16 | E78: 0.9.2 | F78: V0 | G78: 否 | H78: 512 | I78: 512 | J78: 128 | K78: 8585.67 | L78: 166.47 | M78: 699.55 | N78: 1397.51 | O78: 93.68 | P78: 5.465234375 | Q78: 6.007088364 | T78: 2026.02 | U78: 刘玉升
A79: DeepSeek-R1-Distill-Qwen-32B | B79: BW100 | C79: 2 | D79: float16 | E79: 0.9.2 | F79: V0 | G79: 否 | H79: 1024 | I79: 1024 | J79: 1 | K79: 262.43 | L79: 46.8 | M79: 21.27 | N79: 42.52 | O79: 48.14 | P79: 21.27 | Q79: 21.36752137 | T79: 2026.02 | U79: 刘玉升
A80: DeepSeek-R1-Distill-Qwen-32B | B80: BW100 | C80: 2 | D80: float16 | E80: 0.9.2 | F80: V0 | G80: 否 | H80: 1024 | I80: 1024 | J80: 4 | K80: 755.71 | L80: 57.9 | M80: 68.27 | N80: 136.48 | O80: 59.99 | P80: 17.0675 | Q80: 17.27115717 | T80: 2026.02 | U80: 刘玉升
A81: DeepSeek-R1-Distill-Qwen-32B | B81: BW100 | C81: 2 | D81: float16 | E81: 0.9.2 | F81: V0 | G81: 否 | H81: 1024 | I81: 1024 | J81: 8 | K81: 1259.42 | L81: 58.71 | M81: 133.58 | N81: 267.01 | O81: 61.33 | P81: 16.6975 | Q81: 17.03287345 | T81: 2026.02 | U81: 刘玉升
A82: DeepSeek-R1-Distill-Qwen-32B | B82: BW100 | C82: 2 | D82: float16 | E82: 0.9.2 | F82: V0 | G82: 否 | H82: 1024 | I82: 1024 | J82: 16 | K82: 2297.15 | L82: 73.7 | M82: 210.86 | N82: 421.25 | O82: 77.7 | P82: 13.17875 | Q82: 13.56852103 | T82: 2026.02 | U82: 刘玉升
A83: DeepSeek-R1-Distill-Qwen-32B | B83: BW100 | C83: 2 | D83: float16 | E83: 0.9.2 | F83: V0 | G83: 否 | H83: 1024 | I83: 1024 | J83: 32 | K83: 5509.61 | L83: 67.23 | M83: 441.06 | N83: 881.4 | O83: 74.29 | P83: 13.783125 | Q83: 14.87431206 | T83: 2026.02 | U83: 刘玉升
A84: DeepSeek-R1-Distill-Qwen-32B | B84: BW100 | C84: 2 | D84: float16 | E84: 0.9.2 | F84: V0 | G84: 否 | H84: 1024 | I84: 1024 | J84: 64 | K84: 8392.03 | L84: 111.34 | M84: 535.81 | N84: 1069.27 | O84: 122.31 | P84: 8.37203125 | Q84: 8.981498114 | T84: 2026.02 | U84: 刘玉升
A85: DeepSeek-R1-Distill-Qwen-32B | B85: BW100 | C85: 2 | D85: float16 | E85: 0.9.2 | F85: V0 | G85: 否 | H85: 1024 | I85: 1024 | J85: 128 | K85: 14014.23 | L85: 172.43 | M85: 584.53 | N85: 1167.03 | O85: 224.24 | P85: 4.566640625 | Q85: 5.799454851 | T85: 2026.02 | U85: 刘玉升
A86: DeepSeek-R1-Distill-Qwen-32B | B86: BW100 | C86: 2 | D86: float16 | E86: 0.9.2 | F86: V0 | G86: 否 | H86: 2048 | I86: 2048 | J86: 1 | K86: 437.09 | L86: 46.86 | M86: 21.25 | N86: 42.49 | O86: 96.36 | P86: 21.25 | Q86: 21.34016219 | T86: 2026.02 | U86: 刘玉升
A87: DeepSeek-R1-Distill-Qwen-32B | B87: BW100 | C87: 2 | D87: float16 | E87: 0.9.2 | F87: V0 | G87: 否 | H87: 2048 | I87: 2048 | J87: 4 | K87: 1274.08 | L87: 58.29 | M87: 67.93 | N87: 135.83 | O87: 120.6 | P87: 16.9825 | Q87: 17.1556013 | T87: 2026.02 | U87: 刘玉升
A88: DeepSeek-R1-Distill-Qwen-32B | B88: BW100 | C88: 2 | D88: float16 | E88: 0.9.2 | F88: V0 | G88: 否 | H88: 2048 | I88: 2048 | J88: 8 | K88: 2268.71 | L88: 58.86 | M88: 133.47 | N88: 266.47 | O88: 122.76 | P88: 16.68375 | Q88: 16.98946653 | T88: 2026.02 | U88: 刘玉升
A89: DeepSeek-R1-Distill-Qwen-32B | B89: BW100 | C89: 2 | D89: float16 | E89: 0.9.2 | F89: V0 | G89: 否 | H89: 2048 | I89: 2048 | J89: 16 | K89: 5095.43 | L89: 74.62 | M89: 207.58 | N89: 413.69 | O89: 157.85 | P89: 12.97375 | Q89: 13.40123291 | T89: 2026.02 | U89: 刘玉升
A90: DeepSeek-R1-Distill-Qwen-32B | B90: BW100 | C90: 2 | D90: float16 | E90: 0.9.2 | F90: V0 | G90: 否 | H90: 2048 | I90: 2048 | J90: 32 | K90: 8436.01 | L90: 69.68 | M90: 433.8 | N90: 865.6 | O90: 151.07 | P90: 13.55625 | Q90: 14.35132032 | T90: 2026.02 | U90: 刘玉升
A91: DeepSeek-R1-Distill-Qwen-32B | B91: BW100 | C91: 2 | D91: float16 | E91: 0.9.2 | F91: V0 | G91: 否 | H91: 2048 | I91: 2048 | J91: 64 | K91: 14125.98 | L91: 116.73 | M91: 423.62 | N91: 845.2 | O91: 309.41 | P91: 6.6190625 | Q91: 8.566778035 | T91: 2026.02 | U91: 刘玉升
A92: DeepSeek-R1-Distill-Qwen-32B | B92: BW100 | C92: 2 | D92: float16 | E92: 0.9.2 | F92: V0 | G92: 否 | H92: 2048 | I92: 2048 | J92: 128 | K92: 90166.99 | L92: 156.67 | M92: 443.88 | N92: 886.1 | O92: 590.58 | P92: 3.4678125 | Q92: 6.382842918 | T92: 2026.02 | U92: 刘玉升
A93: DeepSeek-R1-Distill-Qwen-32B | B93: BW100 | C93: 2 | D93: float16 | E93: 0.9.2 | F93: V0 | G93: 否 | H93: 4096 | I93: 1024 | J93: 1 | K93: 788.19 | L93: 46.64 | M93: 21.11 | N93: 105.54 | O93: 48.5 | P93: 21.11 | Q93: 21.44082333 | T93: 2026.02 | U93: 刘玉升
A94: DeepSeek-R1-Distill-Qwen-32B | B94: BW100 | C94: 2 | D94: float16 | E94: 0.9.2 | F94: V0 | G94: 否 | H94: 4096 | I94: 1024 | J94: 4 | K94: 2246.78 | L94: 59.04 | M94: 65.38 | N94: 326.73 | O94: 62.64 | P94: 16.345 | Q94: 16.93766938 | T94: 2026.02 | U94: 刘玉升
A95: DeepSeek-R1-Distill-Qwen-32B | B95: BW100 | C95: 2 | D95: float16 | E95: 0.9.2 | F95: V0 | G95: 否 | H95: 4096 | I95: 1024 | J95: 8 | K95: 4760.25 | L95: 61.27 | M95: 121.47 | N95: 607.13 | O95: 67.44 | P95: 15.18375 | Q95: 16.32120124 | T95: 2026.02 | U95: 刘玉升
A96: DeepSeek-R1-Distill-Qwen-32B | B96: BW100 | C96: 2 | D96: float16 | E96: 0.9.2 | F96: V0 | G96: 否 | H96: 4096 | I96: 1024 | J96: 16 | K96: 8475.86 | L96: 81.6 | M96: 178.18 | N96: 889.06 | O96: 91.95 | P96: 11.13625 | Q96: 12.25490196 | T96: 2026.02 | U96: 刘玉升
A97: DeepSeek-R1-Distill-Qwen-32B | B97: BW100 | C97: 2 | D97: float16 | E97: 0.9.2 | F97: V0 | G97: 否 | H97: 4096 | I97: 1024 | J97: 32 | K97: 14467 | L97: 84.75 | M97: 323.86 | N97: 1617.49 | O97: 101.18 | P97: 10.120625 | Q97: 11.79941003 | T97: 2026.02 | U97: 刘玉升
A98: DeepSeek-R1-Distill-Qwen-32B | B98: BW100 | C98: 2 | D98: float16 | E98: 0.9.2 | F98: V0 | G98: 否 | H98: 4096 | I98: 1024 | J98: 64 | K98: 53362.32 | L98: 122.66 | M98: 261.57 | N98: 1305.88 | O98: 250.55 | P98: 4.08703125 | Q98: 8.15261699 | T98: 2026.02 | U98: 刘玉升
A99: DeepSeek-R1-Distill-Qwen-32B | B99: BW100 | C99: 2 | D99: float16 | E99: 0.9.2 | F99: V0 | G99: 否 | H99: 4096 | I99: 1024 | J99: 128 | K99: 156526.1 | L99: 126.85 | M99: 305.98 | N99: 1527.78 | O99: 428.36 | P99: 2.39046875 | Q99: 7.883326764 | T99: 2026.02 | U99: 刘玉升
A100: DeepSeek-R1-Distill-Qwen-32B | B100: BW100 | C100: 2 | D100: float16 | E100: 0.9.2 | F100: V0 | G100: 否 | H100: 16384 | I100: 1024 | J100: 1 | K100: 3456.49 | L100: 47.04 | M100: 19.85 | N100: 337.48 | O100: 51.58 | P100: 19.85 | Q100: 21.2585034 | T100: 2026.02 | U100: 刘玉升
A101: DeepSeek-R1-Distill-Qwen-32B | B101: BW100 | C101: 2 | D101: float16 | E101: 0.9.2 | F101: V0 | G101: 否 | H101: 16384 | I101: 1024 | J101: 4 | K101: 9388.15 | L101: 66.32 | M101: 53.03 | N101: 901.51 | O101: 77.24 | P101: 13.2575 | Q101: 15.07840772 | T101: 2026.02 | U101: 刘玉升
A102: DeepSeek-R1-Distill-Qwen-32B | B102: BW100 | C102: 2 | D102: float16 | E102: 0.9.2 | F102: V0 | G102: 否 | H102: 16384 | I102: 1024 | J102: 8 | K102: 16545.03 | L102: 80.88 | M102: 82.5 | N102: 1402.48 | O102: 99.29 | P102: 10.3125 | Q102: 12.36399604 | T102: 2026.02 | U102: 刘玉升
A103: DeepSeek-R1-Distill-Qwen-32B | B103: BW100 | C103: 2 | D103: float16 | E103: 0.9.2 | F103: V0 | G103: 否 | H103: 16384 | I103: 1024 | J103: 16 | K103: 53859.21 | L103: 97.94 | M103: 77.05 | N103: 1309.7 | O103: 212.65 | P103: 4.815625 | Q103: 10.21033286 | T103: 2026.02 | U103: 刘玉升
A104: DeepSeek-R1-Distill-Qwen-32B | B104: BW100 | C104: 2 | D104: float16 | E104: 0.9.2 | F104: V0 | G104: 否 | H104: 16384 | I104: 1024 | J104: 32 | K104: 140675.12 | L104: 104.76 | M104: 87.03 | N104: 1479.36 | O104: 376.53 | P104: 2.7196875 | Q104: 9.545628102 | T104: 2026.02 | U104: 刘玉升
A105: DeepSeek-R1-Distill-Qwen-32B | B105: BW100 | C105: 2 | D105: float16 | E105: 0.9.2 | F105: V0 | G105: 否 | H105: 16384 | I105: 1024 | J105: 64 | K105: 321667.93 | L105: 107.23 | M105: 86.98 | N105: 1478.52 | O105: 753.49 | P105: 1.3590625 | Q105: 9.325748391 | T105: 2026.02 | U105: 刘玉升
A106: DeepSeek-R1-Distill-Qwen-32B | B106: BW100 | C106: 2 | D106: float16 | E106: 0.9.2 | F106: V0 | G106: 否 | H106: 16384 | I106: 1024 | J106: 128 | K106: 684822.81 | L106: 109.41 | M106: 89.69 | N106: 1524.63 | O106: 1461.4 | P106: 0.700703125 | Q106: 9.139932365 | T106: 2026.02 | U106: 刘玉升
A107: DeepSeek-R1-Distill-Qwen-32B | B107: BW100 | C107: 4 | D107: float16 | E107: 0.9.2 | F107: V0 | G107: 否 | H107: 512 | I107: 512 | J107: 1 | K107: 128.37 | L107: 31.95 | M107: 31.11 | N107: 62.17 | O107: 16.46 | P107: 31.11 | Q107: 31.29890454 | T107: 2026.02 | U107: 刘玉升
A108: DeepSeek-R1-Distill-Qwen-32B | B108: BW100 | C108: 4 | D108: float16 | E108: 0.9.2 | F108: V0 | G108: 否 | H108: 512 | I108: 512 | J108: 4 | K108: 306.32 | L108: 40.65 | M108: 97.15 | N108: 194.1 | O108: 21.08 | P108: 24.2875 | Q108: 24.600246 | T108: 2026.02 | U108: 刘玉升
A109: DeepSeek-R1-Distill-Qwen-32B | B109: BW100 | C109: 4 | D109: float16 | E109: 0.9.2 | F109: V0 | G109: 否 | H109: 512 | I109: 512 | J109: 8 | K109: 557.36 | L109: 47.9 | M109: 163.6 | N109: 326.85 | O109: 25.04 | P109: 20.45 | Q109: 20.87682672 | T109: 2026.02 | U109: 刘玉升
A110: DeepSeek-R1-Distill-Qwen-32B | B110: BW100 | C110: 4 | D110: float16 | E110: 0.9.2 | F110: V0 | G110: 否 | H110: 512 | I110: 512 | J110: 16 | K110: 1088.33 | L110: 46.66 | M110: 328.54 | N110: 656.35 | O110: 24.93 | P110: 20.53375 | Q110: 21.43163309 | T110: 2026.02 | U110: 刘玉升
A111: DeepSeek-R1-Distill-Qwen-32B | B111: BW100 | C111: 4 | D111: float16 | E111: 0.9.2 | F111: V0 | G111: 否 | H111: 512 | I111: 512 | J111: 32 | K111: 2035.83 | L111: 50.75 | M111: 585.65 | N111: 1170.08 | O111: 27.98 | P111: 18.3015625 | Q111: 19.7044335 | T111: 2026.02 | U111: 刘玉升
A112: DeepSeek-R1-Distill-Qwen-32B | B112: BW100 | C112: 4 | D112: float16 | E112: 0.9.2 | F112: V0 | G112: 否 | H112: 512 | I112: 512 | J112: 64 | K112: 4007.76 | L112: 61.58 | M112: 923.24 | N112: 1844.63 | O112: 35.49 | P112: 14.425625 | Q112: 16.23903865 | T112: 2026.02 | U112: 刘玉升
A113: DeepSeek-R1-Distill-Qwen-32B | B113: BW100 | C113: 4 | D113: float16 | E113: 0.9.2 | F113: V0 | G113: 否 | H113: 512 | I113: 512 | J113: 128 | K113: 6006.76 | L113: 98.28 | M113: 1164.91 | N113: 2327.16 | O113: 56.26 | P113: 9.100859375 | Q113: 10.17501018 | T113: 2026.02 | U113: 刘玉升
A114: DeepSeek-R1-Distill-Qwen-32B | B114: BW100 | C114: 4 | D114: float16 | E114: 0.9.2 | F114: V0 | G114: 否 | H114: 1024 | I114: 1024 | J114: 1 | K114: 195.99 | L114: 32.59 | M114: 30.53 | N114: 61.03 | O114: 33.54 | P114: 30.53 | Q114: 30.68425898 | T114: 2026.02 | U114: 刘玉升
A115: DeepSeek-R1-Distill-Qwen-32B | B115: BW100 | C115: 4 | D115: float16 | E115: 0.9.2 | F115: V0 | G115: 否 | H115: 1024 | I115: 1024 | J115: 4 | K115: 552.97 | L115: 41.77 | M115: 94.63 | N115: 189.16 | O115: 43.29 | P115: 23.6575 | Q115: 23.94062724 | T115: 2026.02 | U115: 刘玉升
A116: DeepSeek-R1-Distill-Qwen-32B | B116: BW100 | C116: 4 | D116: float16 | E116: 0.9.2 | F116: V0 | G116: 否 | H116: 1024 | I116: 1024 | J116: 8 | K116: 904.12 | L116: 48.72 | M116: 161.42 | N116: 322.66 | O116: 50.75 | P116: 20.1775 | Q116: 20.52545156 | T116: 2026.02 | U116: 刘玉升
A117: DeepSeek-R1-Distill-Qwen-32B | B117: BW100 | C117: 4 | D117: float16 | E117: 0.9.2 | F117: V0 | G117: 否 | H117: 1024 | I117: 1024 | J117: 16 | K117: 1959.74 | L117: 47.81 | M117: 322.02 | N117: 643.33 | O117: 50.88 | P117: 20.12625 | Q117: 20.91612633 | T117: 2026.02 | U117: 刘玉升
A118: DeepSeek-R1-Distill-Qwen-32B | B118: BW100 | C118: 4 | D118: float16 | E118: 0.9.2 | F118: V0 | G118: 否 | H118: 1024 | I118: 1024 | J118: 32 | K118: 3948.83 | L118: 52.35 | M118: 569.72 | N118: 1138.52 | O118: 57.52 | P118: 17.80375 | Q118: 19.10219675 | T118: 2026.02 | U118: 刘玉升
A119: DeepSeek-R1-Distill-Qwen-32B | B119: BW100 | C119: 4 | D119: float16 | E119: 0.9.2 | F119: V0 | G119: 否 | H119: 1024 | I119: 1024 | J119: 64 | K119: 5990.77 | L119: 64.39 | M119: 911.78 | N119: 1819.57 | O119: 71.88 | P119: 14.2465625 | Q119: 15.53036186 | T119: 2026.02 | U119: 刘玉升
A120: DeepSeek-R1-Distill-Qwen-32B | B120: BW100 | C120: 4 | D120: float16 | E120: 0.9.2 | F120: V0 | G120: 否 | H120: 1024 | I120: 1024 | J120: 128 | K120: 10005.89 | L120: 101.1 | M120: 1155.25 | N120: 2306.5 | O120: 113.46 | P120: 9.025390625 | Q120: 9.891196835 | T120: 2026.02 | U120: 刘玉升
A121: DeepSeek-R1-Distill-Qwen-32B | B121: BW100 | C121: 4 | D121: float16 | E121: 0.9.2 | F121: V0 | G121: 否 | H121: 2048 | I121: 2048 | J121: 1 | K121: 313.9 | L121: 33.1 | M121: 30.08 | N121: 60.15 | O121: 68.08 | P121: 30.08 | Q121: 30.21148036 | T121: 2026.02 | U121: 刘玉升
A122: DeepSeek-R1-Distill-Qwen-32B | B122: BW100 | C122: 4 | D122: float16 | E122: 0.9.2 | F122: V0 | G122: 否 | H122: 2048 | I122: 2048 | J122: 4 | K122: 911.64 | L122: 42.15 | M122: 93.95 | N122: 187.86 | O122: 87.19 | P122: 23.4875 | Q122: 23.72479241 | T122: 2026.02 | U122: 刘玉升
A123: DeepSeek-R1-Distill-Qwen-32B | B123: BW100 | C123: 4 | D123: float16 | E123: 0.9.2 | F123: V0 | G123: 否 | H123: 2048 | I123: 2048 | J123: 8 | K123: 1871.06 | L123: 48.81 | M123: 160.97 | N123: 321.38 | O123: 101.78 | P123: 20.12125 | Q123: 20.487605 | T123: 2026.02 | U123: 刘玉升
A124: DeepSeek-R1-Distill-Qwen-32B | B124: BW100 | C124: 4 | D124: float16 | E124: 0.9.2 | F124: V0 | G124: 否 | H124: 2048 | I124: 2048 | J124: 16 | K124: 3843.64 | L124: 48.67 | M124: 316.66 | N124: 631.06 | O124: 103.48 | P124: 19.79125 | Q124: 20.54653791 | T124: 2026.02 | U124: 刘玉升
A125: DeepSeek-R1-Distill-Qwen-32B | B125: BW100 | C125: 4 | D125: float16 | E125: 0.9.2 | F125: V0 | G125: 否 | H125: 2048 | I125: 2048 | J125: 32 | K125: 5990.21 | L125: 54.21 | M125: 560.28 | N125: 1117.96 | O125: 116.97 | P125: 17.50875 | Q125: 18.44678104 | T125: 2026.02 | U125: 刘玉升
A126: DeepSeek-R1-Distill-Qwen-32B | B126: BW100 | C126: 4 | D126: float16 | E126: 0.9.2 | F126: V0 | G126: 否 | H126: 2048 | I126: 2048 | J126: 64 | K126: 10087.21 | L126: 67.17 | M126: 888.01 | N126: 1771.73 | O126: 147.6 | P126: 13.87515625 | Q126: 14.88759863 | T126: 2026.02 | U126: 刘玉升
A127: DeepSeek-R1-Distill-Qwen-32B | B127: BW100 | C127: 4 | D127: float16 | E127: 0.9.2 | F127: V0 | G127: 否 | H127: 2048 | I127: 2048 | J127: 128 | K127: 18454.45 | L127: 103.39 | M127: 1139.14 | N127: 2274.04 | O127: 230.12 | P127: 8.89953125 | Q127: 9.672115292 | T127: 2026.02 | U127: 刘玉升
A128: DeepSeek-R1-Distill-Qwen-32B | B128: BW100 | C128: 4 | D128: float16 | E128: 0.9.2 | F128: V0 | G128: 否 | H128: 4096 | I128: 1024 | J128: 1 | K128: 575.9 | L128: 32.83 | M128: 29.98 | N128: 149.85 | O128: 34.16 | P128: 29.98 | Q128: 30.45994517 | T128: 2026.02 | U128: 刘玉升
A129: DeepSeek-R1-Distill-Qwen-32B | B129: BW100 | C129: 4 | D129: float16 | E129: 0.9.2 | F129: V0 | G129: 否 | H129: 4096 | I129: 1024 | J129: 4 | K129: 1751.53 | L129: 43.04 | M129: 89.47 | N129: 447.11 | O129: 45.78 | P129: 22.3675 | Q129: 23.23420074 | T129: 2026.02 | U129: 刘玉升
A130: DeepSeek-R1-Distill-Qwen-32B | B130: BW100 | C130: 4 | D130: float16 | E130: 0.9.2 | F130: V0 | G130: 否 | H130: 4096 | I130: 1024 | J130: 8 | K130: 3713.38 | L130: 49.97 | M130: 149.39 | N130: 746.67 | O130: 54.84 | P130: =M130/J130 -> 18.67375 | Q130: =1000/L130 -> 20.0120072 | T130: 2026.02 | U130: 刘玉升
A131: DeepSeek-R1-Distill-Qwen-32B | B131: BW100 | C131: 4 | D131: float16 | E131: 0.9.2 | F131: V0 | G131: 否 | H131: 4096 | I131: 1024 | J131: 16 | K131: 6000.43 | L131: 52.98 | M131: 272.13 | N131: 1357.88 | O131: 60.21 | P131: 17.008125 | Q131: 18.87504719 | T131: 2026.02 | U131: 刘玉升
A132: DeepSeek-R1-Distill-Qwen-32B | B132: BW100 | C132: 4 | D132: float16 | E132: 0.9.2 | F132: V0 | G132: 否 | H132: 4096 | I132: 1024 | J132: 32 | K132: 10200.6 | L132: 64.94 | M132: 427.54 | N132: 2135.26 | O132: 76.64 | P132: 13.360625 | Q132: 15.39882969 | T132: 2026.02 | U132: 刘玉升
A133: DeepSeek-R1-Distill-Qwen-32B | B133: BW100 | C133: 4 | D133: float16 | E133: 0.9.2 | F133: V0 | G133: 否 | H133: 4096 | I133: 1024 | J133: 64 | K133: 18437.26 | L133: 87.16 | M133: 608.95 | N133: 3040.22 | O133: 107.62 | P133: 9.51484375 | Q133: 11.47315282 | T133: 2026.02 | U133: 刘玉升
A134: DeepSeek-R1-Distill-Qwen-32B | B134: BW100 | C134: 4 | D134: float16 | E134: 0.9.2 | F134: V0 | G134: 否 | H134: 4096 | I134: 1024 | J134: 128 | K134: 34803.75 | L134: 142.68 | M134: 724.95 | N134: 3619.66 | O134: 180.8 | P134: 5.663671875 | Q134: 7.008690777 | T134: 2026.02 | U134: 刘玉升
A135: DeepSeek-R1-Distill-Qwen-32B | B135: BW100 | C135: 4 | D135: float16 | E135: 0.9.2 | F135: V0 | G135: 否 | H135: 16384 | I135: 1024 | J135: 1 | K135: 2384.98 | L135: 33.62 | M135: 27.84 | N135: 473.27 | O135: 36.78 | P135: 27.84 | Q135: 29.74419988 | T135: 2026.02 | U135: 刘玉升
A136: DeepSeek-R1-Distill-Qwen-32B | B136: BW100 | C136: 4 | D136: float16 | E136: 0.9.2 | F136: V0 | G136: 否 | H136: 16384 | I136: 1024 | J136: 4 | K136: 6415.59 | L136: 46.4 | M136: 76.02 | N136: 1292.25 | O136: 53.88 | P136: 19.005 | Q136: 21.55172414 | T136: 2026.02 | U136: 刘玉升
A137: DeepSeek-R1-Distill-Qwen-32B | B137: BW100 | C137: 4 | D137: float16 | E137: 0.9.2 | F137: V0 | G137: 否 | H137: 16384 | I137: 1024 | J137: 8 | K137: 11241.93 | L137: 62.39 | M137: 109.12 | N137: 1854.88 | O137: 75.08 | P137: 13.64 | Q137: 16.02820965 | T137: 2026.02 | U137: 刘玉升
A138: DeepSeek-R1-Distill-Qwen-32B | B138: BW100 | C138: 4 | D138: float16 | E138: 0.9.2 | F138: V0 | G138: 否 | H138: 16384 | I138: 1024 | J138: 16 | K138: 20492.56 | L138: 78.07 | M138: 163.25 | N138: 2775.02 | O138: 100.36 | P138: 10.203125 | Q138: 12.80901755 | T138: 2026.02 | U138: 刘玉升
A139: DeepSeek-R1-Distill-Qwen-32B | B139: BW100 | C139: 4 | D139: float16 | E139: 0.9.2 | F139: V0 | G139: 否 | H139: 16384 | I139: 1024 | J139: 32 | K139: 38716.32 | L139: 113.69 | M139: 211.35 | N139: 3592.77 | O139: 155.04 | P139: 6.6046875 | Q139: 8.79584836 | T139: 2026.02 | U139: 刘玉升
A140: DeepSeek-R1-Distill-Qwen-32B | B140: BW100 | C140: 4 | D140: float16 | E140: 0.9.2 | F140: V0 | G140: 否 | H140: 16384 | I140: 1024 | J140: 64 | K140: 111430.48 | L140: 124.41 | M140: 206.27 | N140: 3506.38 | O140: 317.72 | P140: 3.22296875 | Q140: 8.037939072 | T140: 2026.02 | U140: 刘玉升
A141: DeepSeek-R1-Distill-Qwen-32B | B141: BW100 | C141: 4 | D141: float16 | E141: 0.9.2 | F141: V0 | G141: 否 | H141: 16384 | I141: 1024 | J141: 128 | K141: 260918.18 | L141: 136.54 | M141: 203.17 | N141: 3453.69 | O141: 645.14 | P141: 1.587265625 | Q141: 7.32386114 | T141: 2026.02 | U141: 刘玉升
A142: DeepSeek-R1-Distill-Llama-70B | B142: BW100 | C142: 4 | D142: float16 | E142: 0.9.2 | F142: V0 | G142: 否 | H142: 512 | I142: 512 | J142: 1 | K142: 228.71 | L142: 53.2 | M142: 18.67 | N142: 37.31 | O142: 27.42 | P142: 18.67 | Q142: 18.79699248 | R142: vllm:0.9.2-ubuntu22.04-dtk25.04.2-1226-das1.7-py3.10-20251226 | S142: Hygon C86 7490 64-core Processor*2 /DDR5 4800 64G*24 /480G 2.5 SATA 6Gb R SSD*2 /960G 2.5 SATA 6Gb R SSD*4/7.68T*4/BCM 9560-8i Tri-Mode RAID x1/双口1G RJ45网卡x1/DCU K100-AI x8(120CU)/MLX MCX653105A-HDAT 1-port 200G HDR QSFP56 HCA*1/2700W电源模块*4 | T142: 2026.02 | U142: 刘玉升
A143: DeepSeek-R1-Distill-Llama-70B | B143: BW100 | C143: 4 | D143: float16 | E143: 0.9.2 | F143: V0 | G143: 否 | H143: 512 | I143: 512 | J143: 4 | K143: 610.48 | L143: 63.83 | M143: 61.64 | N143: 123.15 | O143: 33.23 | P143: 15.41 | Q143: 15.66661444 | T143: 2026.02 | U143: 刘玉升
A144: DeepSeek-R1-Distill-Llama-70B | B144: BW100 | C144: 4 | D144: float16 | E144: 0.9.2 | F144: V0 | G144: 否 | H144: 512 | I144: 512 | J144: 8 | K144: 1125.97 | L144: 63.99 | M144: 121.08 | N144: 241.93 | O144: 33.83 | P144: 15.135 | Q144: 15.62744179 | T144: 2026.02 | U144: 刘玉升
A145: DeepSeek-R1-Distill-Llama-70B | B145: BW100 | C145: 4 | D145: float16 | E145: 0.9.2 | F145: V0 | G145: 否 | H145: 512 | I145: 512 | J145: 16 | K145: 2160.67 | L145: 67.29 | M145: 224.14 | N145: 447.84 | O145: 36.55 | P145: 14.00875 | Q145: 14.86104919 | T145: 2026.02 | U145: 刘玉升
A146: DeepSeek-R1-Distill-Llama-70B | B146: BW100 | C146: 4 | D146: float16 | E146: 0.9.2 | F146: V0 | G146: 否 | H146: 512 | I146: 512 | J146: 32 | K146: 3539.24 | L146: 77.87 | M146: 378.01 | N146: 755.29 | O146: 43.34 | P146: 11.8128125 | Q146: 12.84191601 | T146: 2026.02 | U146: 刘玉升
A147: DeepSeek-R1-Distill-Llama-70B | B147: BW100 | C147: 4 | D147: float16 | E147: 0.9.2 | F147: V0 | G147: 否 | H147: 512 | I147: 512 | J147: 64 | K147: 8216.65 | L147: 103.52 | M147: 536.01 | N147: 1070.98 | O147: 61.13 | P147: 8.37515625 | Q147: 9.659969088 | T147: 2026.02 | U147: 刘玉升
A148: DeepSeek-R1-Distill-Llama-70B | B148: BW100 | C148: 4 | D148: float16 | E148: 0.9.2 | F148: V0 | G148: 否 | H148: 512 | I148: 512 | J148: 128 | K148: 12448.32 | L148: 155.43 | M148: 713.09 | N148: 1423.27 | O148: 91.9 | P148: 5.571015625 | Q148: 6.433764396 | T148: 2026.02 | U148: 刘玉升
A149: DeepSeek-R1-Distill-Llama-70B | B149: BW100 | C149: 4 | D149: float16 | E149: 0.9.2 | F149: V0 | G149: 否 | H149: 1024 | I149: 1024 | J149: 1 | K149: 347.01 | L149: 53.28 | M149: 18.67 | N149: 37.32 | O149: 54.85 | P149: 18.67 | Q149: 18.76876877 | T149: 2026.02 | U149: 刘玉升
A150: DeepSeek-R1-Distill-Llama-70B | B150: BW100 | C150: 4 | D150: float16 | E150: 0.9.2 | F150: V0 | G150: 否 | H150: 1024 | I150: 1024 | J150: 4 | K150: 1128.92 | L150: 63.83 | M150: 61.66 | N150: 123.26 | O150: 66.43 | P150: 15.415 | Q150: 15.66661444 | T150: 2026.02 | U150: 刘玉升
A151: DeepSeek-R1-Distill-Llama-70B | B151: BW100 | C151: 4 | D151: float16 | E151: 0.9.2 | F151: V0 | G151: 否 | H151: 1024 | I151: 1024 | J151: 8 | K151: 2165.18 | L151: 64.42 | M151: 120.34 | N151: 240.56 | O151: 68.07 | P151: 15.0425 | Q151: 15.52312946 | T151: 2026.02 | U151: 刘玉升
A152: DeepSeek-R1-Distill-Llama-70B | B152: BW100 | C152: 4 | D152: float16 | E152: 0.9.2 | F152: V0 | G152: 否 | H152: 1024 | I152: 1024 | J152: 16 | K152: 3284.07 | L152: 69.02 | M152: 221.71 | N152: 443.21 | O152: 73.9 | P152: 13.856875 | Q152: 14.48855404 | T152: 2026.02 | U152: 刘玉升
A153: DeepSeek-R1-Distill-Llama-70B | B153: BW100 | C153: 4 | D153: float16 | E153: 0.9.2 | F153: V0 | G153: 否 | H153: 1024 | I153: 1024 | J153: 32 | K153: 7780.76 | L153: 77.8 | M153: 375.01 | N153: 749.66 | O153: 87.38 | P153: 11.7190625 | Q153: 12.85347044 | T153: 2026.02 | U153: 刘玉升
A154: DeepSeek-R1-Distill-Llama-70B | B154: BW100 | C154: 4 | D154: float16 | E154: 0.9.2 | F154: V0 | G154: 否 | H154: 1024 | I154: 1024 | J154: 64 | K154: 12397.32 | L154: 107.02 | M154: 537.66 | N154: 1074.8 | O154: 121.89 | P154: 8.4009375 | Q154: 9.344047842 | T154: 2026.02 | U154: 刘玉升
A155: DeepSeek-R1-Distill-Llama-70B | B155: BW100 | C155: 4 | D155: float16 | E155: 0.9.2 | F155: V0 | G155: 否 | H155: 1024 | I155: 1024 | J155: 128 | K155: 20951.29 | L155: 160.2 | M155: 709 | N155: 1416.54 | O155: 184.87 | P155: 5.5390625 | Q155: 6.242197253 | T155: 2026.02 | U155: 刘玉升
A156: DeepSeek-R1-Distill-Llama-70B | B156: BW100 | C156: 4 | D156: float16 | E156: 0.9.2 | F156: V0 | G156: 否 | H156: 2048 | I156: 2048 | J156: 1 | K156: 616.36 | L156: 53.34 | M156: 18.65 | N156: 37.29 | O156: 109.8 | P156: 18.65 | Q156: 18.74765654 | T156: 2026.02 | U156: 刘玉升
A157: DeepSeek-R1-Distill-Llama-70B | B157: BW100 | C157: 4 | D157: float16 | E157: 0.9.2 | F157: V0 | G157: 否 | H157: 2048 | I157: 2048 | J157: 4 | K157: 2183.99 | L157: 63.98 | M157: 61.53 | N157: 123.02 | O157: 133.15 | P157: 15.3825 | Q157: 15.62988434 | T157: 2026.02 | U157: 刘玉升
A158: DeepSeek-R1-Distill-Llama-70B | B158: BW100 | C158: 4 | D158: float16 | E158: 0.9.2 | F158: V0 | G158: 否 | H158: 2048 | I158: 2048 | J158: 8 | K158: 3361.55 | L158: 64.93 | M158: 120.22 | N158: 240.38 | O158: 136.28 | P158: 15.0275 | Q158: 15.40120129 | T158: 2026.02 | U158: 刘玉升
A159: DeepSeek-R1-Distill-Llama-70B | B159: BW100 | C159: 4 | D159: float16 | E159: 0.9.2 | F159: V0 | G159: 否 | H159: 2048 | I159: 2048 | J159: 16 | K159: 7312.37 | L159: 69 | M159: 220.58 | N159: 441.05 | O159: 148.56 | P159: 13.78625 | Q159: 14.49275362 | T159: 2026.02 | U159: 刘玉升
A160: DeepSeek-R1-Distill-Llama-70B | B160: BW100 | C160: 4 | D160: float16 | E160: 0.9.2 | F160: V0 | G160: 否 | H160: 2048 | I160: 2048 | J160: 32 | K160: 12573.84 | L160: 81.13 | M160: 366.81 | N160: 733.43 | O160: 178.67 | P160: 11.4628125 | Q160: 12.32589671 | T160: 2026.02 | U160: 刘玉升
A161: DeepSeek-R1-Distill-Llama-70B | B161: BW100 | C161: 4 | D161: float16 | E161: 0.9.2 | F161: V0 | G161: 否 | H161: 2048 | I161: 2048 | J161: 64 | K161: 21215.86 | L161: 110.16 | M161: 531.22 | N161: 1062.18 | O161: 246.74 | P161: 8.3003125 | Q161: 9.077705156 | T161: 2026.02 | U161: 刘玉升
A162: DeepSeek-R1-Distill-Llama-70B | B162: BW100 | C162: 4 | D162: float16 | E162: 0.9.2 | F162: V0 | G162: 否 | H162: 2048 | I162: 2048 | J162: 128 | K162: 38313.54 | L162: 172.25 | M162: 509.48 | N162: 1018.5 | O162: 514.53 | P162: 3.9803125 | Q162: 5.805515239 | T162: 2026.02 | U162: 刘玉升
A163: DeepSeek-R1-Distill-Llama-70B | B163: BW100 | C163: 4 | D163: float16 | E163: 0.9.2 | F163: V0 | G163: 否 | H163: 4096 | I163: 1024 | J163: 1 | K163: 1160.67 | L163: 53.32 | M163: 18.38 | N163: 91.89 | O163: 55.71 | P163: 18.38 | Q163: 18.75468867 | T163: 2026.02 | U163: 刘玉升
A164: DeepSeek-R1-Distill-Llama-70B | B164: BW100 | C164: 4 | D164: float16 | E164: 0.9.2 | F164: V0 | G164: 否 | H164: 4096 | I164: 1024 | J164: 4 | K164: 3650.94 | L164: 64.41 | M164: 58.9 | N164: 294.44 | O164: 69.54 | P164: 14.725 | Q164: 15.52553951 | T164: 2026.02 | U164: 刘玉升
A165: DeepSeek-R1-Distill-Llama-70B | B165: BW100 | C165: 4 | D165: float16 | E165: 0.9.2 | F165: V0 | G165: 否 | H165: 4096 | I165: 1024 | J165: 8 | K165: 7087.13 | L165: 66.47 | M165: 109.1 | N165: 545.37 | O165: 75.09 | P165: 13.6375 | Q165: 15.04438092 | T165: 2026.02 | U165: 刘玉升
A166: DeepSeek-R1-Distill-Llama-70B | B166: BW100 | C166: 4 | D166: float16 | E166: 0.9.2 | F166: V0 | G166: 否 | H166: 4096 | I166: 1024 | J166: 16 | K166: 12572.4 | L166: 75.59 | M166: 182.24 | N166: 911.02 | O166: 89.9 | P166: 11.39 | Q166: 13.22926313 | T166: 2026.02 | U166: 刘玉升
A167: DeepSeek-R1-Distill-Llama-70B | B167: BW100 | C167: 4 | D167: float16 | E167: 0.9.2 | F167: V0 | G167: 否 | H167: 4096 | I167: 1024 | J167: 32 | K167: 21444.24 | L167: 95.69 | M167: 274.56 | N167: 1372.52 | O167: 119.35 | P167: 8.58 | Q167: 10.45041279 | T167: 2026.02 | U167: 刘玉升
A168: DeepSeek-R1-Distill-Llama-70B | B168: BW100 | C168: 4 | D168: float16 | E168: 0.9.2 | F168: V0 | G168: 否 | H168: 4096 | I168: 1024 | J168: 64 | K168: 38750.61 | L168: 142.53 | M168: 322.92 | N168: 1614.17 | O168: 202.95 | P168: 5.045625 | Q168: 7.016066793 | T168: 2026.02 | U168: 刘玉升
A169: DeepSeek-R1-Distill-Llama-70B | B169: BW100 | C169: 4 | D169: float16 | E169: 0.9.2 | F169: V0 | G169: 否 | H169: 4096 | I169: 1024 | J169: 128 | K169: 130354.99 | L169: 159.77 | M169: 336.95 | N169: 1684.09 | O169: 389 | P169: 2.632421875 | Q169: 6.258997309 | T169: 2026.02 | U169: 刘玉升
A170: DeepSeek-R1-Distill-Llama-70B | B170: BW100 | C170: 4 | D170: float16 | E170: 0.9.2 | F170: V0 | G170: 否 | H170: 16384 | I170: 1024 | J170: 1 | K170: 4878.95 | L170: 53.87 | M170: 17.07 | N170: 290.17 | O170: 59.99 | P170: 17.07 | Q170: 18.56320772 | T170: 2026.02 | U170: 刘玉升
A171: DeepSeek-R1-Distill-Llama-70B | B171: BW100 | C171: 4 | D171: float16 | E171: 0.9.2 | F171: V0 | G171: 否 | H171: 16384 | I171: 1024 | J171: 4 | K171: 13301.24 | L171: 70.65 | M171: 47.86 | N171: 813.62 | O171: 85.58 | P171: 11.965 | Q171: 14.15428167 | T171: 2026.02 | U171: 刘玉升
A172: DeepSeek-R1-Distill-Llama-70B | B172: BW100 | C172: 4 | D172: float16 | E172: 0.9.2 | F172: V0 | G172: 否 | H172: 16384 | I172: 1024 | J172: 8 | K172: 23483.09 | L172: 85.42 | M172: 73.89 | N172: 1256.03 | O172: 110.87 | P172: 9.23625 | Q172: 11.70686022 | T172: 2026.02 | U172: 刘玉升
A173: DeepSeek-R1-Distill-Llama-70B | B173: BW100 | C173: 4 | D173: float16 | E173: 0.9.2 | F173: V0 | G173: 否 | H173: 16384 | I173: 1024 | J173: 16 | K173: 42946.53 | L173: 115.33 | M173: 101.8 | N173: 1730.57 | O173: 160.94 | P173: 6.3625 | Q173: 8.670770832 | T173: 2026.02 | U173: 刘玉升
A174: DeepSeek-R1-Distill-Llama-70B | B174: BW100 | C174: 4 | D174: float16 | E174: 0.9.2 | F174: V0 | G174: 否 | H174: 16384 | I174: 1024 | J174: 32 | K174: 121144.45 | L174: 118.13 | M174: 100.67 | N174: 1711.24 | O174: 325.51 | P174: 3.1459375 | Q174: 8.465250148 | T174: 2026.02 | U174: 刘玉升
A175: DeepSeek-R1-Distill-Llama-70B | B175: BW100 | C175: 4 | D175: float16 | E175: 0.9.2 | F175: V0 | G175: 否 | H175: 16384 | I175: 1024 | J175: 64 | K175: 275907.48 | L175: 119.95 | M175: 100.67 | N175: 1711.36 | O175: 650.97 | P175: 1.57296875 | Q175: 8.336807003 | T175: 2026.02 | U175: 刘玉升
A176: DeepSeek-R1-Distill-Llama-70B | B176: BW100 | C176: 4 | D176: float16 | E176: 0.9.2 | F176: V0 | G176: 否 | H176: 16384 | I176: 1024 | J176: 128 | K176: 588019.43 | L176: 124.42 | M176: 100.34 | N176: 1705.61 | O176: 1306.33 | P176: 0.78390625 | Q176: 8.03729304 | T176: 2026.02 | U176: 刘玉升
A177: DeepSeek-R1-Distill-Llama-70B | B177: BW100 | C177: 8 | D177: float16 | E177: 0.9.2 | F177: V0 | G177: 否 | H177: 512 | I177: 512 | J177: 1 | K177: 163.14 | L177: 33.84 | M177: 29.33 | N177: 58.6 | O177: 17.46 | P177: 29.33 | Q177: 29.55082742 | T177: 2026.02 | U177: 刘玉升
A178: DeepSeek-R1-Distill-Llama-70B | B178: BW100 | C178: 8 | D178: float16 | E178: 0.9.2 | F178: V0 | G178: 否 | H178: 512 | I178: 512 | J178: 4 | K178: 473.94 | L178: 44.18 | M178: 88.84 | N178: 177.5 | O178: 23.05 | P178: 22.21 | Q178: 22.63467632 | T178: 2026.02 | U178: 刘玉升
A179: DeepSeek-R1-Distill-Llama-70B | B179: BW100 | C179: 8 | D179: float16 | E179: 0.9.2 | F179: V0 | G179: 否 | H179: 512 | I179: 512 | J179: 8 | K179: 880.14 | L179: 57.1 | M179: 136.24 | N179: 272.22 | O179: 30.06 | P179: 17.03 | Q179: 17.51313485 | T179: 2026.02 | U179: 刘玉升
A180: DeepSeek-R1-Distill-Llama-70B | B180: BW100 | C180: 8 | D180: float16 | E180: 0.9.2 | F180: V0 | G180: 否 | H180: 512 | I180: 512 | J180: 16 | K180: 1763.3 | L180: 49.96 | M180: 300.11 | N180: 599.63 | O180: 27.3 | P180: 18.756875 | Q180: 20.01601281 | T180: 2026.02 | U180: 刘玉升
A181: DeepSeek-R1-Distill-Llama-70B | B181: BW100 | C181: 8 | D181: float16 | E181: 0.9.2 | F181: V0 | G181: 否 | H181: 512 | I181: 512 | J181: 32 | K181: 3359.7 | L181: 55.59 | M181: 515.63 | N181: 1030.24 | O181: 31.78 | P181: 16.1134375 | Q181: 17.98884691 | T181: 2026.02 | U181: 刘玉升
A182: DeepSeek-R1-Distill-Llama-70B | B182: BW100 | C182: 8 | D182: float16 | E182: 0.9.2 | F182: V0 | G182: 否 | H182: 512 | I182: 512 | J182: 64 | K182: 6288.08 | L182: 72.04 | M182: 759.97 | N182: 1518.46 | O182: 43.12 | P182: 11.87453125 | Q182: 13.88117712 | T182: 2026.02 | U182: 刘玉升
A183: DeepSeek-R1-Distill-Llama-70B | B183: BW100 | C183: 8 | D183: float16 | E183: 0.9.2 | F183: V0 | G183: 否 | H183: 512 | I183: 512 | J183: 128 | K183: 10023.09 | L183: 112.89 | M183: 967.44 | N183: 1930.92 | O183: 67.74 | P183: 7.558125 | Q183: 8.85818053 | T183: 2026.02 | U183: 刘玉升
A184: DeepSeek-R1-Distill-Llama-70B | B184: BW100 | C184: 8 | D184: float16 | E184: 0.9.2 | F184: V0 | G184: 否 | H184: 1024 | I184: 1024 | J184: 1 | K184: 287.65 | L184: 35.74 | M184: 27.79 | N184: 55.54 | O184: 36.85 | P184: 27.79 | Q184: 27.9798545 | T184: 2026.02 | U184: 刘玉升
A185: DeepSeek-R1-Distill-Llama-70B | B185: BW100 | C185: 8 | D185: float16 | E185: 0.9.2 | F185: V0 | G185: 否 | H185: 1024 | I185: 1024 | J185: 4 | K185: 884.53 | L185: 46.9 | M185: 83.83 | N185: 167.58 | O185: 48.86 | P185: 20.9575 | Q185: 21.32196162 | T185: 2026.02 | U185: 刘玉升
A186: DeepSeek-R1-Distill-Llama-70B | B186: BW100 | C186: 8 | D186: float16 | E186: 0.9.2 | F186: V0 | G186: 否 | H186: 1024 | I186: 1024 | J186: 8 | K186: 1443.04 | L186: 59.35 | M186: 131.8 | N186: 263.46 | O186: 62.16 | P186: 16.475 | Q186: 16.84919966 | T186: 2026.02 | U186: 刘玉升
A187: DeepSeek-R1-Distill-Llama-70B | B187: BW100 | C187: 8 | D187: float16 | E187: 0.9.2 | F187: V0 | G187: 否 | H187: 1024 | I187: 1024 | J187: 16 | K187: 3011.53 | L187: 51.51 | M187: 294.09 | N187: 587.88 | O187: 55.71 | P187: 18.380625 | Q187: 19.41370608 | T187: 2026.02 | U187: 刘玉升
A188: DeepSeek-R1-Distill-Llama-70B | B188: BW100 | C188: 8 | D188: float16 | E188: 0.9.2 | F188: V0 | G188: 否 | H188: 1024 | I188: 1024 | J188: 32 | K188: 6638.32 | L188: 58.2 | M188: 495.11 | N188: 989.74 | O188: 66.18 | P188: 15.4721875 | Q188: 17.18213058 | T188: 2026.02 | U188: 刘玉升
A189: DeepSeek-R1-Distill-Llama-70B | B189: BW100 | C189: 8 | D189: float16 | E189: 0.9.2 | F189: V0 | G189: 否 | H189: 1024 | I189: 1024 | J189: 64 | K189: 9700.83 | L189: 76.57 | M189: 744.34 | N189: 1487.95 | O189: 88.05 | P189: 11.6303125 | Q189: 13.05994515 | T189: 2026.02 | U189: 刘玉升
A190: DeepSeek-R1-Distill-Llama-70B | B190: BW100 | C190: 8 | D190: float16 | E190: 0.9.2 | F190: V0 | G190: 否 | H190: 1024 | I190: 1024 | J190: 128 | K190: 16528.23 | L190: 117.86 | M190: 955.83 | N190: 1909.7 | O190: 137.13 | P190: 7.467421875 | Q190: 8.484642797 | T190: 2026.02 | U190: 刘玉升
A191: DeepSeek-R1-Distill-Llama-70B | B191: BW100 | C191: 8 | D191: float16 | E191: 0.9.2 | F191: V0 | G191: 否 | H191: 2048 | I191: 2048 | J191: 1 | K191: 484.22 | L191: 36.9 | M191: 26.94 | N191: 53.87 | O191: 76.02 | P191: 26.94 | Q191: 27.100271 | T191: 2026.02 | U191: 刘玉升
A192: DeepSeek-R1-Distill-Llama-70B | B192: BW100 | C192: 8 | D192: float16 | E192: 0.9.2 | F192: V0 | G192: 否 | H192: 2048 | I192: 2048 | J192: 4 | K192: 1451.53 | L192: 47.63 | M192: 82.78 | N192: 165.53 | O192: 98.96 | P192: 20.695 | Q192: 20.99517111 | T192: 2026.02 | U192: 刘玉升
A193: DeepSeek-R1-Distill-Llama-70B | B193: BW100 | C193: 8 | D193: float16 | E193: 0.9.2 | F193: V0 | G193: 否 | H193: 2048 | I193: 2048 | J193: 8 | K193: 3035.58 | L193: 61.13 | M193: 127.83 | N193: 255.61 | O193: 128.17 | P193: 15.97875 | Q193: 16.35858008 | T193: 2026.02 | U193: 刘玉升
A194: DeepSeek-R1-Distill-Llama-70B | B194: BW100 | C194: 8 | D194: float16 | E194: 0.9.2 | F194: V0 | G194: 否 | H194: 2048 | I194: 2048 | J194: 16 | K194: 6271.2 | L194: 53.22 | M194: 284.39 | N194: 568.64 | O194: 115.22 | P194: =M194/J194 -> 17.774375 | Q194: =1000/L194 -> 18.7899286 | T194: 2026.02 | U194: 刘玉升
A195: DeepSeek-R1-Distill-Llama-70B | B195: BW100 | C195: 8 | D195: float16 | E195: 0.9.2 | F195: V0 | G195: 否 | H195: 2048 | I195: 2048 | J195: 32 | K195: 9767.13 | L195: 60.49 | M195: 490.53 | N195: 980.81 | O195: 133.6 | P195: 15.3290625 | Q195: 16.53165813 | T195: 2026.02 | U195: 刘玉升
A196: DeepSeek-R1-Distill-Llama-70B | B196: BW100 | C196: 8 | D196: float16 | E196: 0.9.2 | F196: V0 | G196: 否 | H196: 2048 | I196: 2048 | J196: 64 | K196: 16390.39 | L196: 79.93 | M196: 728.04 | N196: 1455.72 | O196: 180.03 | P196: 11.375625 | Q196: 12.51094708 | T196: 2026.02 | U196: 刘玉升
A197: DeepSeek-R1-Distill-Llama-70B | B197: BW100 | C197: 8 | D197: float16 | E197: 0.9.2 | F197: V0 | G197: 否 | H197: 2048 | I197: 2048 | J197: 128 | K197: 29579 | L197: 120.84 | M197: 946.49 | N197: 1892.13 | O197: 276.96 | P197: 7.394453125 | Q197: 8.275405495 | T197: 2026.02 | U197: 刘玉升
A198: DeepSeek-R1-Distill-Llama-70B | B198: BW100 | C198: 8 | D198: float16 | E198: 0.9.2 | F198: V0 | G198: 否 | H198: 4096 | I198: 1024 | J198: 1 | K198: 901.2 | L198: 37.3 | M198: 26.22 | N198: 131.06 | O198: 39.06 | P198: 26.22 | Q198: 26.80965147 | T198: 2026.02 | U198: 刘玉升
A199: DeepSeek-R1-Distill-Llama-70B | B199: BW100 | C199: 8 | D199: float16 | E199: 0.9.2 | F199: V0 | G199: 否 | H199: 4096 | I199: 1024 | J199: 4 | K199: 2796.95 | L199: 48.81 | M199: 77.68 | N199: 388.3 | O199: 52.73 | P199: 19.42 | Q199: 20.487605 | T199: 2026.02 | U199: 刘玉升
A200: DeepSeek-R1-Distill-Llama-70B | B200: BW100 | C200: 8 | D200: float16 | E200: 0.9.2 | F200: V0 | G200: 否 | H200: 4096 | I200: 1024 | J200: 8 | K200: 5989.76 | L200: 61.48 | M200: 118.91 | N200: 594.45 | O200: 68.89 | P200: 14.86375 | Q200: 16.26545218 | T200: 2026.02 | U200: 刘玉升
... 596 more rows

Sheet Qwen3系列
A1: 模型 | B1: 卡类型 | C1: 卡数 | D1: 数据类型 | E1: vLLM版本 | F1: V0/V1 Engine | G1: Prefix Caching开启 | H1: 输入长度 (tokens) | I1: 输出长度 (tokens) | J1: 并发数 | K1: 平均首字延时 TTFT(ms) | L1: 平均生成时间 TPOT(ms) | M1: 生成吞吐量 (tokens/s) | N1: 总吞吐量(tokens/s) | O1: 总耗时 （s) | P1: 单并发Output吞吐 (tokens/s） | Q1: 单并发Decode吞吐（tokens/s) | R1: 镜像 | S1: 硬件平台 | T1: 数据日期 | U1: 数据提供者 | V1: 备注
A2: Qwen3-32B | B2: BW100 | C2: 2 | D2: float16 | E2: 0.9.2 | F2: V0 | G2: 否 | H2: 512 | I2: 512 | J2: 1 | K2: 176.97 | L2: 45.9 | M2: 21.67 | N2: 43.33 | O2: 23.63 | P2: =M2/J2 -> 21.67 | Q2: =1000/L2 -> 21.78649237 | R2: vllm:0.9.2-ubuntu22.04-dtk25.04.2-1226-das1.7-py3.10-20251226 | S2: Hygon C86 7490 64-core Processor*2 /DDR5 4800 64G*24 /480G 2.5 SATA 6Gb R SSD*2 /960G 2.5 SATA 6Gb R SSD*4/7.68T*4/BCM 9560-8i Tri-Mode RAID x1/双口1G RJ45网卡x1/DCU K100-AI x8(120CU)/MLX MCX653105A-HDAT 1-port 200G HDR QSFP56 HCA*1/2700W电源模块*4 | T2: 2026.2 | U2: 刘玉升
A3: Qwen3-32B | B3: BW100 | C3: 2 | D3: float16 | E3: 0.9.2 | F3: V0 | G3: 否 | H3: 512 | I3: 512 | J3: 4 | K3: 454.44 | L3: 52.1 | M3: 75.63 | N3: 151.27 | O3: 27.08 | P3: 18.9075 | Q3: 19.19385797 | T3: 2026.2 | U3: 刘玉升
A4: Qwen3-32B | B4: BW100 | C4: 2 | D4: float16 | E4: 0.9.2 | F4: V0 | G4: 否 | H4: 512 | I4: 512 | J4: 8 | K4: 802.95 | L4: 54.34 | M4: 143.35 | N4: 286.66 | O4: 28.57 | P4: 17.91875 | Q4: 18.40264998 | T4: 2026.2 | U4: 刘玉升
A5: Qwen3-32B | B5: BW100 | C5: 2 | D5: float16 | E5: 0.9.2 | F5: V0 | G5: 否 | H5: 512 | I5: 512 | J5: 16 | K5: 1384.61 | L5: 61.67 | M5: 248.97 | N5: 497.88 | O5: 32.9 | P5: 15.560625 | Q5: 16.21533971 | T5: 2026.2 | U5: 刘玉升
A6: Qwen3-32B | B6: BW100 | C6: 2 | D6: float16 | E6: 0.9.2 | F6: V0 | G6: 否 | H6: 512 | I6: 512 | J6: 32 | K6: 2902.73 | L6: 76.78 | M6: 388.73 | N6: 777.42 | O6: 42.15 | P6: 12.1478125 | Q6: 13.02422506 | T6: 2026.2 | U6: 刘玉升
A7: Qwen3-32B | B7: BW100 | C7: 2 | D7: float16 | E7: 0.9.2 | F7: V0 | G7: 否 | H7: 512 | I7: 512 | J7: 64 | K7: 5880.23 | L7: 112.24 | M7: 518.06 | N7: 1036.1 | O7: 63.25 | P7: 8.0946875 | Q7: 8.909479686 | T7: 2026.2 | U7: 刘玉升
A8: Qwen3-32B | B8: BW100 | C8: 2 | D8: float16 | E8: 0.9.2 | F8: V0 | G8: 否 | H8: 512 | I8: 512 | J8: 128 | K8: 11902.67 | L8: 175.38 | M8: 645.35 | N8: 1290.47 | O8: 101.55 | P8: 5.041796875 | Q8: 5.701904436 | T8: 2026.2 | U8: 刘玉升
A9: Qwen3-32B | B9: BW100 | C9: 2 | D9: float16 | E9: 0.9.2 | F9: V0 | G9: 否 | H9: 1024 | I9: 1024 | J9: 1 | K9: 288.78 | L9: 46.08 | M9: 21.59 | N9: 43.18 | O9: 47.43 | P9: 21.59 | Q9: 21.70138889 | T9: 2026.2 | U9: 刘玉升
A10: Qwen3-32B | B10: BW100 | C10: 2 | D10: float16 | E10: 0.9.2 | F10: V0 | G10: 否 | H10: 1024 | I10: 1024 | J10: 4 | K10: 804.01 | L10: 52.25 | M10: 75.5 | N10: 151 | O10: 54.25 | P10: 18.875 | Q10: 19.13875598 | T10: 2026.2 | U10: 刘玉升
A11: Qwen3-32B | B11: BW100 | C11: 2 | D11: float16 | E11: 0.9.2 | F11: V0 | G11: 否 | H11: 1024 | I11: 1024 | J11: 8 | K11: 1453.22 | L11: 55.25 | M11: 141.3 | N11: 282.57 | O11: 57.98 | P11: 17.6625 | Q11: 18.09954751 | T11: 2026.2 | U11: 刘玉升
A12: Qwen3-32B | B12: BW100 | C12: 2 | D12: float16 | E12: 0.9.2 | F12: V0 | G12: 否 | H12: 1024 | I12: 1024 | J12: 16 | K12: 2442.28 | L12: 62.21 | M12: 247.91 | N12: 495.51 | O12: 66.09 | P12: 15.494375 | Q12: 16.07458608 | T12: 2026.2 | U12: 刘玉升
A13: Qwen3-32B | B13: BW100 | C13: 2 | D13: float16 | E13: 0.9.2 | F13: V0 | G13: 否 | H13: 1024 | I13: 1024 | J13: 32 | K13: 5866.68 | L13: 77.66 | M13: 384.04 | N13: 767.83 | O13: 85.33 | P13: 12.00125 | Q13: 12.87664177 | T13: 2026.2 | U13: 刘玉升
A14: Qwen3-32B | B14: BW100 | C14: 2 | D14: float16 | E14: 0.9.2 | F14: V0 | G14: 否 | H14: 1024 | I14: 1024 | J14: 64 | K14: 8808.37 | L14: 115.53 | M14: 515.98 | N14: 1030.2 | O14: 127.01 | P14: 8.0621875 | Q14: 8.655760409 | T14: 2026.2 | U14: 刘玉升
A15: Qwen3-32B | B15: BW100 | C15: 2 | D15: float16 | E15: 0.9.2 | F15: V0 | G15: 否 | H15: 1024 | I15: 1024 | J15: 128 | K15: 14892.29 | L15: 185.3 | M15: 555.32 | N15: 1109.26 | O15: 236.03 | P15: 4.3384375 | Q15: 5.396654074 | T15: 2026.2 | U15: 刘玉升
A16: Qwen3-32B | B16: BW100 | C16: 2 | D16: float16 | E16: 0.9.2 | F16: V0 | G16: 否 | H16: 2048 | I16: 2048 | J16: 1 | K16: 464.64 | L16: 46.32 | M16: 21.49 | N16: 42.99 | O16: 95.29 | P16: 21.49 | Q16: 21.58894646 | T16: 2026.2 | U16: 刘玉升
A17: Qwen3-32B | B17: BW100 | C17: 2 | D17: float16 | E17: 0.9.2 | F17: V0 | G17: 否 | H17: 2048 | I17: 2048 | J17: 4 | K17: 1573.62 | L17: 52.66 | M17: 74.91 | N17: 149.82 | O17: 109.36 | P17: 18.7275 | Q17: 18.98974554 | T17: 2026.2 | U17: 刘玉升
A18: Qwen3-32B | B18: BW100 | C18: 2 | D18: float16 | E18: 0.9.2 | F18: V0 | G18: 否 | H18: 2048 | I18: 2048 | J18: 8 | K18: 2481.68 | L18: 55.09 | M18: 142.14 | N18: 283.86 | O18: 115.26 | P18: 17.7675 | Q18: 18.15211472 | T18: 2026.2 | U18: 刘玉升
A19: Qwen3-32B | B19: BW100 | C19: 2 | D19: float16 | E19: 0.9.2 | F19: V0 | G19: 否 | H19: 2048 | I19: 2048 | J19: 16 | K19: 5452.44 | L19: 62.36 | M19: 246.17 | N19: 490.71 | O19: 133.11 | P19: 15.385625 | Q19: 16.03592046 | T19: 2026.2 | U19: 刘玉升
A20: Qwen3-32B | B20: BW100 | C20: 2 | D20: float16 | E20: 0.9.2 | F20: V0 | G20: 否 | H20: 2048 | I20: 2048 | J20: 32 | K20: 9032.37 | L20: 79.95 | M20: 379.46 | N20: 757.35 | O20: 172.71 | P20: 11.858125 | Q20: 12.50781739 | T20: 2026.2 | U20: 刘玉升
A21: Qwen3-32B | B21: BW100 | C21: 2 | D21: float16 | E21: 0.9.2 | F21: V0 | G21: 否 | H21: 2048 | I21: 2048 | J21: 64 | K21: 15118.27 | L21: 119.18 | M21: 423.68 | N21: 845.52 | O21: 309.37 | P21: 6.62 | Q21: 8.390669575 | T21: 2026.2 | U21: 刘玉升
A22: Qwen3-32B | B22: BW100 | C22: 2 | D22: float16 | E22: 0.9.2 | F22: V0 | G22: 否 | H22: 2048 | I22: 2048 | J22: 128 | K22: 90042.07 | L22: 161.86 | M22: 454.12 | N22: 906.77 | O22: 577.25 | P22: 3.5478125 | Q22: 6.178178673 | T22: 2026.2 | U22: 刘玉升
A23: Qwen3-32B | B23: BW100 | C23: 2 | D23: float16 | E23: 0.9.2 | F23: V0 | G23: 否 | H23: 4096 | I23: 1024 | J23: 1 | K23: 850.89 | L23: 46.32 | M23: 21.23 | N23: 106.15 | O23: 48.23 | P23: 21.23 | Q23: 21.58894646 | T23: 2026.2 | U23: 刘玉升
A24: Qwen3-32B | B24: BW100 | C24: 2 | D24: float16 | E24: 0.9.2 | F24: V0 | G24: 否 | H24: 4096 | I24: 1024 | J24: 4 | K24: 2465.56 | L24: 53.28 | M24: 71.89 | N24: 359.31 | O24: 56.98 | P24: 17.9725 | Q24: 18.76876877 | T24: 2026.2 | U24: 刘玉升
A25: Qwen3-32B | B25: BW100 | C25: 2 | D25: float16 | E25: 0.9.2 | F25: V0 | G25: 否 | H25: 4096 | I25: 1024 | J25: 8 | K25: 5683.7 | L25: 57.59 | M25: 126.81 | N25: 633.93 | O25: 64.6 | P25: 15.85125 | Q25: 17.36412572 | T25: 2026.2 | U25: 刘玉升
A26: Qwen3-32B | B26: BW100 | C26: 2 | D26: float16 | E26: 0.9.2 | F26: V0 | G26: 否 | H26: 4096 | I26: 1024 | J26: 16 | K26: 9209.31 | L26: 68.8 | M26: 205.82 | N26: 1027.21 | O26: 79.6 | P26: 12.86375 | Q26: 14.53488372 | T26: 2026.2 | U26: 刘玉升
A27: Qwen3-32B | B27: BW100 | C27: 2 | D27: float16 | E27: 0.9.2 | F27: V0 | G27: 否 | H27: 4096 | I27: 1024 | J27: 32 | K27: 15710.93 | L27: 93.86 | M27: 293.26 | N27: 1464.95 | O27: 111.74 | P27: 9.164375 | Q27: 10.65416578 | T27: 2026.2 | U27: 刘玉升
A28: Qwen3-32B | B28: BW100 | C28: 2 | D28: float16 | E28: 0.9.2 | F28: V0 | G28: 否 | H28: 4096 | I28: 1024 | J28: 64 | K28: 53547.36 | L28: 119.47 | M28: 273.97 | N28: 1368.04 | O28: 239.21 | P28: 4.28078125 | Q28: 8.370302168 | T28: 2026.2 | U28: 刘玉升
A29: Qwen3-32B | B29: BW100 | C29: 2 | D29: float16 | E29: 0.9.2 | F29: V0 | G29: 否 | H29: 4096 | I29: 1024 | J29: 128 | K29: 157797.52 | L29: 125.96 | M29: 306.46 | N29: 1530.44 | O29: 427.7 | P29: 2.39421875 | Q29: 7.939028263 | T29: 2026.2 | U29: 刘玉升
A30: Qwen3-32B | B30: BW100 | C30: 2 | D30: float16 | E30: 0.9.2 | F30: V0 | G30: 否 | H30: 16384 | I30: 1024 | J30: 1 | K30: 4020.2 | L30: 46.65 | M30: 19.79 | N30: 336.4 | O30: 51.75 | P30: 19.79 | Q30: 21.43622722 | T30: 2026.2 | U30: 刘玉升
A31: Qwen3-32B | B31: BW100 | C31: 2 | D31: float16 | E31: 0.9.2 | F31: V0 | G31: 否 | H31: 16384 | I31: 1024 | J31: 4 | K31: 10932.39 | L31: 62.79 | M31: 54.49 | N31: 926.33 | O31: 75.17 | P31: 13.6225 | Q31: 15.92610288 | T31: 2026.2 | U31: 刘玉升
A32: Qwen3-32B | B32: BW100 | C32: 2 | D32: float16 | E32: 0.9.2 | F32: V0 | G32: 否 | H32: 16384 | I32: 1024 | J32: 8 | K32: 19278.76 | L32: 77.68 | M32: 82.96 | N32: 1410.3 | O32: 98.75 | P32: 10.37 | Q32: 12.87332647 | T32: 2026.2 | U32: 刘玉升
A33: Qwen3-32B | B33: BW100 | C33: 2 | D33: float16 | E33: 0.9.2 | F33: V0 | G33: 否 | H33: 16384 | I33: 1024 | J33: 16 | K33: 55591.6 | L33: 87.82 | M33: 80.78 | N33: 1373.27 | O33: 202.82 | P33: 5.04875 | Q33: 11.38692781 | T33: 2026.2 | U33: 刘玉升
A34: Qwen3-32B | B34: BW100 | C34: 2 | D34: float16 | E34: 0.9.2 | F34: V0 | G34: 否 | H34: 16384 | I34: 1024 | J34: 32 | K34: 138053 | L34: 93.36 | M34: 91.95 | N34: 1563.12 | O34: 356.38 | P34: 2.8734375 | Q34: 10.71122536 | T34: 2026.2 | U34: 刘玉升
A35: Qwen3-32B | B35: BW100 | C35: 2 | D35: float16 | E35: 0.9.2 | F35: V0 | G35: 否 | H35: 16384 | I35: 1024 | J35: 64 | K35: 308965.55 | L35: 96.39 | M35: 91.24 | N35: 1551.01 | O35: 718.32 | P35: 1.425625 | Q35: 10.37452018 | T35: 2026.2 | U35: 刘玉升
A36: Qwen3-32B | B36: BW100 | C36: 2 | D36: float16 | E36: 0.9.2 | F36: V0 | G36: 否 | H36: 16384 | I36: 1024 | J36: 128 | K36: 653254.35 | L36: 98.22 | M36: 94.2 | N36: 1601.45 | O36: 1391.38 | P36: 0.7359375 | Q36: 10.18122582 | T36: 2026.2 | U36: 刘玉升
A37: Qwen3-32B | B37: BW100 | C37: 4 | D37: float16 | E37: 0.9.2 | F37: V0 | G37: 否 | H37: 512 | I37: 512 | J37: 1 | K37: 123.59 | L37: 27.86 | M37: 35.65 | N37: 71.3 | O37: 14.36 | P37: 35.65 | Q37: 35.89375449 | T37: 2026.2 | U37: 刘玉升
A38: Qwen3-32B | B38: BW100 | C38: 4 | D38: float16 | E38: 0.9.2 | F38: V0 | G38: 否 | H38: 512 | I38: 512 | J38: 4 | K38: 328.2 | L38: 36.96 | M38: 106.57 | N38: 213.14 | O38: 19.22 | P38: 26.6425 | Q38: 27.05627706 | T38: 2026.2 | U38: 刘玉升
A39: Qwen3-32B | B39: BW100 | C39: 4 | D39: float16 | E39: 0.9.2 | F39: V0 | G39: 否 | H39: 512 | I39: 512 | J39: 8 | K39: 533.07 | L39: 37.94 | M39: 205.59 | N39: 411.12 | O39: 19.92 | P39: 25.69875 | Q39: 26.35740643 | T39: 2026.2 | U39: 刘玉升
A40: Qwen3-32B | B40: BW100 | C40: 4 | D40: float16 | E40: 0.9.2 | F40: V0 | G40: 否 | H40: 512 | I40: 512 | J40: 16 | K40: 1072.69 | L40: 39.16 | M40: 388.48 | N40: 776.87 | O40: 21.09 | P40: 24.28 | Q40: 25.53626149 | T40: 2026.2 | U40: 刘玉升
A41: Qwen3-32B | B41: BW100 | C41: 4 | D41: float16 | E41: 0.9.2 | F41: V0 | G41: 否 | H41: 512 | I41: 512 | J41: 32 | K41: 2123.85 | L41: 49.28 | M41: 599.81 | N41: 1199.56 | O41: 27.32 | P41: 18.7440625 | Q41: 20.29220779 | T41: 2026.2 | U41: 刘玉升
A42: Qwen3-32B | B42: BW100 | C42: 4 | D42: float16 | E42: 0.9.2 | F42: V0 | G42: 否 | H42: 512 | I42: 512 | J42: 64 | K42: 4070.11 | L42: 68.21 | M42: 841.48 | N42: 1682.9 | O42: 38.94 | P42: 13.148125 | Q42: 14.66060695 | T42: 2026.2 | U42: 刘玉升
A43: Qwen3-32B | B43: BW100 | C43: 4 | D43: float16 | E43: 0.9.2 | F43: V0 | G43: 否 | H43: 512 | I43: 512 | J43: 128 | K43: 8437.1 | L43: 107.86 | M43: 1030.58 | N43: 2060.8 | O43: 63.59 | P43: 8.05140625 | Q43: 9.271277582 | T43: 2026.2 | U43: 刘玉升
A44: Qwen3-32B | B44: BW100 | C44: 4 | D44: float16 | E44: 0.9.2 | F44: V0 | G44: 否 | H44: 1024 | I44: 1024 | J44: 1 | K44: 203.08 | L44: 28.67 | M44: 34.67 | N44: 69.33 | O44: 29.54 | P44: 34.67 | Q44: 34.87966516 | T44: 2026.2 | U44: 刘玉升
A45: Qwen3-32B | B45: BW100 | C45: 4 | D45: float16 | E45: 0.9.2 | F45: V0 | G45: 否 | H45: 1024 | I45: 1024 | J45: 4 | K45: 531.21 | L45: 38.23 | M45: 103.31 | N45: 206.62 | O45: 39.65 | P45: 25.8275 | Q45: 26.15746796 | T45: 2026.2 | U45: 刘玉升
A46: Qwen3-32B | B46: BW100 | C46: 4 | D46: float16 | E46: 0.9.2 | F46: V0 | G46: 否 | H46: 1024 | I46: 1024 | J46: 8 | K46: 971.8 | L46: 38.67 | M46: 202.1 | N46: 404.18 | O46: 40.53 | P46: 25.2625 | Q46: 25.85983967 | T46: 2026.2 | U46: 刘玉升
A47: Qwen3-32B | B47: BW100 | C47: 4 | D47: float16 | E47: 0.9.2 | F47: V0 | G47: 否 | H47: 1024 | I47: 1024 | J47: 16 | K47: 2058.44 | L47: 40.8 | M47: 374.06 | N47: 747.67 | O47: 43.8 | P47: 23.37875 | Q47: 24.50980392 | T47: 2026.2 | U47: 刘玉升
A48: Qwen3-32B | B48: BW100 | C48: 4 | D48: float16 | E48: 0.9.2 | F48: V0 | G48: 否 | H48: 1024 | I48: 1024 | J48: 32 | K48: 4143.6 | L48: 51.16 | M48: 580.12 | N48: 1159.88 | O48: 56.48 | P48: 18.12875 | Q48: 19.54652072 | T48: 2026.2 | U48: 刘玉升
A49: Qwen3-32B | B49: BW100 | C49: 4 | D49: float16 | E49: 0.9.2 | F49: V0 | G49: 否 | H49: 1024 | I49: 1024 | J49: 64 | K49: 6369.57 | L49: 71.99 | M49: 818.92 | N49: 1635.04 | O49: 80.03 | P49: 12.795625 | Q49: 13.89081817 | T49: 2026.2 | U49: 刘玉升
A50: Qwen3-32B | B50: BW100 | C50: 4 | D50: float16 | E50: 0.9.2 | F50: V0 | G50: 否 | H50: 1024 | I50: 1024 | J50: 128 | K50: 10558.5 | L50: 115.59 | M50: 1017.32 | N50: 2032.11 | O50: 128.84 | P50: 7.9478125 | Q50: 8.651267411 | T50: 2026.2 | U50: 刘玉升
A51: Qwen3-32B | B51: BW100 | C51: 4 | D51: float16 | E51: 0.9.2 | F51: V0 | G51: 否 | H51: 2048 | I51: 2048 | J51: 1 | K51: 334.5 | L51: 29.66 | M51: 33.54 | N51: 67.09 | O51: 61.05 | P51: 33.54 | Q51: 33.71544167 | T51: 2026.2 | U51: 刘玉升
A52: Qwen3-32B | B52: BW100 | C52: 4 | D52: float16 | E52: 0.9.2 | F52: V0 | G52: 否 | H52: 2048 | I52: 2048 | J52: 4 | K52: 982.1 | L52: 38.56 | M52: 102.51 | N52: 205.02 | O52: 79.92 | P52: 25.6275 | Q52: 25.93360996 | T52: 2026.2 | U52: 刘玉升
A53: Qwen3-32B | B53: BW100 | C53: 4 | D53: float16 | E53: 0.9.2 | F53: V0 | G53: 否 | H53: 2048 | I53: 2048 | J53: 8 | K53: 1977.55 | L53: 38.88 | M53: 200.87 | N53: 401.14 | O53: 81.57 | P53: 25.10875 | Q53: 25.72016461 | T53: 2026.2 | U53: 刘玉升
A54: Qwen3-32B | B54: BW100 | C54: 4 | D54: float16 | E54: 0.9.2 | F54: V0 | G54: 否 | H54: 2048 | I54: 2048 | J54: 16 | K54: 4059.75 | L54: 42.12 | M54: 362.96 | N54: 723.5 | O54: 90.28 | P54: 22.685 | Q54: 23.74169041 | T54: 2026.2 | U54: 刘玉升
A55: Qwen3-32B | B55: BW100 | C55: 4 | D55: float16 | E55: 0.9.2 | F55: V0 | G55: 否 | H55: 2048 | I55: 2048 | J55: 32 | K55: 6342.16 | L55: 53.1 | M55: 569.66 | N55: 1136.95 | O55: 115.04 | P55: 17.801875 | Q55: 18.83239171 | T55: 2026.2 | U55: 刘玉升
A56: Qwen3-32B | B56: BW100 | C56: 4 | D56: float16 | E56: 0.9.2 | F56: V0 | G56: 否 | H56: 2048 | I56: 2048 | J56: 64 | K56: 10700.99 | L56: 74.71 | M56: 800.98 | N56: 1598.47 | O56: 163.64 | P56: 12.5153125 | Q56: 13.38508901 | T56: 2026.2 | U56: 刘玉升
A57: Qwen3-32B | B57: BW100 | C57: 4 | D57: float16 | E57: 0.9.2 | F57: V0 | G57: 否 | H57: 2048 | I57: 2048 | J57: 128 | K57: 19565.96 | L57: 117.48 | M57: 1007.95 | N57: 2012.64 | O57: 260.08 | P57: 7.874609375 | Q57: 8.512087164 | T57: 2026.2 | U57: 刘玉升
A58: Qwen3-32B | B58: BW100 | C58: 4 | D58: float16 | E58: 0.9.2 | F58: V0 | G58: 否 | H58: 4096 | I58: 1024 | J58: 1 | K58: 602.54 | L58: 29.94 | M58: 32.78 | N58: 163.92 | O58: 31.23 | P58: 32.78 | Q58: 33.4001336 | T58: 2026.2 | U58: 刘玉升
A59: Qwen3-32B | B59: BW100 | C59: 4 | D59: float16 | E59: 0.9.2 | F59: V0 | G59: 否 | H59: 4096 | I59: 1024 | J59: 4 | K59: 1879.4 | L59: 39.55 | M59: 96.75 | N59: 483.55 | O59: 42.34 | P59: 24.1875 | Q59: 25.28445006 | T59: 2026.2 | U59: 刘玉升
A60: Qwen3-32B | B60: BW100 | C60: 4 | D60: float16 | E60: 0.9.2 | F60: V0 | G60: 否 | H60: 4096 | I60: 1024 | J60: 8 | K60: 3958.59 | L60: 40.25 | M60: 181.5 | N60: 907.32 | O60: 45.14 | P60: 22.6875 | Q60: 24.8447205 | T60: 2026.2 | U60: 刘玉升
A61: Qwen3-32B | B61: BW100 | C61: 4 | D61: float16 | E61: 0.9.2 | F61: V0 | G61: 否 | H61: 4096 | I61: 1024 | J61: 16 | K61: 6404.42 | L61: 47.33 | M61: 298.82 | N61: 1491.34 | O61: 54.83 | P61: 18.67625 | Q61: 21.12824847 | T61: 2026.2 | U61: 刘玉升
A62: Qwen3-32B | B62: BW100 | C62: 4 | D62: float16 | E62: 0.9.2 | F62: V0 | G62: 否 | H62: 4096 | I62: 1024 | J62: 32 | K62: 10905.85 | L62: 62.58 | M62: 437.27 | N62: 2184.32 | O62: 74.94 | P62: 13.6646875 | Q62: 15.97954618 | T62: 2026.2 | U62: 刘玉升
A63: Qwen3-32B | B63: BW100 | C63: 4 | D63: float16 | E63: 0.9.2 | F63: V0 | G63: 否 | H63: 4096 | I63: 1024 | J63: 64 | K63: 19714.78 | L63: 93.57 | M63: 567.63 | N63: 2834.48 | O63: 115.45 | P63: 8.86921875 | Q63: 10.68718606 | T63: 2026.2 | U63: 刘玉升
A64: Qwen3-32B | B64: BW100 | C64: 4 | D64: float16 | E64: 0.9.2 | F64: V0 | G64: 否 | H64: 4096 | I64: 1024 | J64: 128 | K64: 37226.8 | L64: 155.99 | M64: 665.88 | N64: 3325.37 | O64: 196.84 | P64: 5.2021875 | Q64: 6.41066735 | T64: 2026.2 | U64: 刘玉升
A65: Qwen3-32B | B65: BW100 | C65: 4 | D65: float16 | E65: 0.9.2 | F65: V0 | G65: 否 | H65: 16384 | I65: 1024 | J65: 1 | K65: 2662.75 | L65: 30.47 | M65: 30.26 | N65: 514.48 | O65: 33.84 | P65: 30.26 | Q65: 32.81916639 | T65: 2026.2 | U65: 刘玉升
A66: Qwen3-32B | B66: BW100 | C66: 4 | D66: float16 | E66: 0.9.2 | F66: V0 | G66: 否 | H66: 16384 | I66: 1024 | J66: 4 | K66: 7197.02 | L66: 42.74 | M66: 80.43 | N66: 1367.33 | O66: 50.93 | P66: =M66/J66 -> 20.1075 | Q66: =1000/L66 -> 23.39728591 | T66: 2026.2 | U66: 刘玉升
A67: Qwen3-32B | B67: BW100 | C67: 4 | D67: float16 | E67: 0.9.2 | F67: V0 | G67: 否 | H67: 16384 | I67: 1024 | J67: 8 | K67: 12649.17 | L67: 53.17 | M67: 122.19 | N67: 2077.25 | O67: 67.04 | P67: 15.27375 | Q67: 18.80759827 | T67: 2026.2 | U67: 刘玉升
A68: Qwen3-32B | B68: BW100 | C68: 4 | D68: float16 | E68: 0.9.2 | F68: V0 | G68: 否 | H68: 16384 | I68: 1024 | J68: 16 | K68: 23048.76 | L68: 72.72 | M68: 168.13 | N68: 2858.18 | O68: 97.45 | P68: 10.508125 | Q68: 13.75137514 | T68: 2026.2 | U68: 刘玉升
A69: Qwen3-32B | B69: BW100 | C69: 4 | D69: float16 | E69: 0.9.2 | F69: V0 | G69: 否 | H69: 16384 | I69: 1024 | J69: 32 | K69: 43600.36 | L69: 113.86 | M69: 204.68 | N69: 3479.59 | O69: 160.09 | P69: 6.39625 | Q69: 8.782715616 | T69: 2026.2 | U69: 刘玉升
A70: Qwen3-32B | B70: BW100 | C70: 4 | D70: float16 | E70: 0.9.2 | F70: V0 | G70: 否 | H70: 16384 | I70: 1024 | J70: 64 | K70: 119675.96 | L70: 124.82 | M70: 199.3 | N70: 3388.12 | O70: 328.83 | P70: 3.1140625 | Q70: 8.011536613 | T70: 2026.2 | U70: 刘玉升
A71: Qwen3-32B | B71: BW100 | C71: 4 | D71: float16 | E71: 0.9.2 | F71: V0 | G71: 否 | H71: 16384 | I71: 1024 | J71: 128 | K71: 274139.39 | L71: 137.23 | M71: 197.74 | N71: 3361.52 | O71: 662.86 | P71: 1.54484375 | Q71: 7.287036362 | T71: 2026.2 | U71: 刘玉升
A72: Qwen3-14B | B72: BW100 | C72: 1 | D72: float16 | E72: 0.9.2 | F72: V0 | G72: 否 | H72: 512 | I72: 512 | J72: 1 | K72: 142.24 | L72: 47.4 | M72: 21.02 | N72: 42.03 | O72: 24.36 | P72: 21.02 | Q72: 21.09704641 | R72: vllm:0.9.2-ubuntu22.04-dtk25.04.2-1226-das1.7-py3.10-20251226 | S72: Hygon C86 7490 64-core Processor*2 /DDR5 4800 64G*24 /480G 2.5 SATA 6Gb R SSD*2 /960G 2.5 SATA 6Gb R SSD*4/7.68T*4/BCM 9560-8i Tri-Mode RAID x1/双口1G RJ45网卡x1/DCU K100-AI x8(120CU)/MLX MCX653105A-HDAT 1-port 200G HDR QSFP56 HCA*1/2700W电源模块*4 | T72: 2026.2 | U72: 刘玉升
A73: Qwen3-14B | B73: BW100 | C73: 1 | D73: float16 | E73: 0.9.2 | F73: V0 | G73: 否 | H73: 512 | I73: 512 | J73: 4 | K73: 322.17 | L73: 48.37 | M73: 81.79 | N73: 163.59 | O73: 25.04 | P73: 20.4475 | Q73: 20.67397147 | T73: 2026.2 | U73: 刘玉升
A74: Qwen3-14B | B74: BW100 | C74: 1 | D74: float16 | E74: 0.9.2 | F74: V0 | G74: 否 | H74: 512 | I74: 512 | J74: 8 | K74: 575.93 | L74: 50.57 | M74: 155.03 | N74: 310.02 | O74: 26.42 | P74: 19.37875 | Q74: 19.7745699 | T74: 2026.2 | U74: 刘玉升
A75: Qwen3-14B | B75: BW100 | C75: 1 | D75: float16 | E75: 0.9.2 | F75: V0 | G75: 否 | H75: 512 | I75: 512 | J75: 16 | K75: 1031.71 | L75: 56.53 | M75: 273.77 | N75: 547.48 | O75: 29.92 | P75: 17.110625 | Q75: 17.68972227 | T75: 2026.2 | U75: 刘玉升
A76: Qwen3-14B | B76: BW100 | C76: 1 | D76: float16 | E76: 0.9.2 | F76: V0 | G76: 否 | H76: 512 | I76: 512 | J76: 32 | K76: 2192.92 | L76: 65.62 | M76: 458.48 | N76: 916.91 | O76: 35.74 | P76: 14.3275 | Q76: 15.23925632 | T76: 2026.2 | U76: 刘玉升
A77: Qwen3-14B | B77: BW100 | C77: 1 | D77: float16 | E77: 0.9.2 | F77: V0 | G77: 否 | H77: 512 | I77: 512 | J77: 64 | K77: 4506.95 | L77: 96.38 | M77: 609.37 | N77: 1218.69 | O77: 53.77 | P77: 9.52140625 | Q77: 10.3755966 | T77: 2026.2 | U77: 刘玉升
A78: Qwen3-14B | B78: BW100 | C78: 1 | D78: float16 | E78: 0.9.2 | F78: V0 | G78: 否 | H78: 512 | I78: 512 | J78: 128 | K78: 6851.55 | L78: 171.56 | M78: 693.17 | N78: 1386.09 | O78: 94.55 | P78: 5.415390625 | Q78: 5.828864537 | T78: 2026.2 | U78: 刘玉升
A79: Qwen3-14B | B79: BW100 | C79: 1 | D79: float16 | E79: 0.9.2 | F79: V0 | G79: 否 | H79: 1024 | I79: 1024 | J79: 1 | K79: 207.23 | L79: 47.49 | M79: 20.99 | N79: 41.98 | O79: 48.79 | P79: 20.99 | Q79: 21.05706465 | T79: 2026.2 | U79: 刘玉升
A80: Qwen3-14B | B80: BW100 | C80: 1 | D80: float16 | E80: 0.9.2 | F80: V0 | G80: 否 | H80: 1024 | I80: 1024 | J80: 4 | K80: 579.92 | L80: 48.68 | M80: 81.3 | N80: 162.59 | O80: 50.38 | P80: 20.325 | Q80: 20.54231717 | T80: 2026.2 | U80: 刘玉升
A81: Qwen3-14B | B81: BW100 | C81: 1 | D81: float16 | E81: 0.9.2 | F81: V0 | G81: 否 | H81: 1024 | I81: 1024 | J81: 8 | K81: 1117.81 | L81: 50.93 | M81: 153.92 | N81: 307.83 | O81: 53.22 | P81: 19.24 | Q81: 19.63479285 | T81: 2026.2 | U81: 刘玉升
A82: Qwen3-14B | B82: BW100 | C82: 1 | D82: float16 | E82: 0.9.2 | F82: V0 | G82: 否 | H82: 1024 | I82: 1024 | J82: 16 | K82: 1786.24 | L82: 57.23 | M82: 271.55 | N82: 542.76 | O82: 60.34 | P82: 16.971875 | Q82: 17.47335314 | T82: 2026.2 | U82: 刘玉升
A83: Qwen3-14B | B83: BW100 | C83: 1 | D83: float16 | E83: 0.9.2 | F83: V0 | G83: 否 | H83: 1024 | I83: 1024 | J83: 32 | K83: 4267.2 | L83: 66.86 | M83: 450.92 | N83: 901.56 | O83: 72.67 | P83: 14.09125 | Q83: 14.95662579 | T83: 2026.2 | U83: 刘玉升
A84: Qwen3-14B | B84: BW100 | C84: 1 | D84: float16 | E84: 0.9.2 | F84: V0 | G84: 否 | H84: 1024 | I84: 1024 | J84: 64 | K84: 6634 | L84: 99.52 | M84: 604.24 | N84: 1206.42 | O84: 108.46 | P84: 9.44125 | Q84: 10.04823151 | T84: 2026.2 | U84: 刘玉升
A85: Qwen3-14B | B85: BW100 | C85: 1 | D85: float16 | E85: 0.9.2 | F85: V0 | G85: 否 | H85: 1024 | I85: 1024 | J85: 128 | K85: 11255.27 | L85: 174.8 | M85: 575.56 | N85: 1149.69 | O85: 227.73 | P85: 4.4965625 | Q85: 5.720823799 | T85: 2026.2 | U85: 刘玉升
A86: Qwen3-14B | B86: BW100 | C86: 1 | D86: float16 | E86: 0.9.2 | F86: V0 | G86: 否 | H86: 2048 | I86: 2048 | J86: 1 | K86: 330.6 | L86: 47.55 | M86: 20.97 | N86: 41.94 | O86: 97.66 | P86: 20.97 | Q86: 21.03049422 | T86: 2026.2 | U86: 刘玉升
A87: Qwen3-14B | B87: BW100 | C87: 1 | D87: float16 | E87: 0.9.2 | F87: V0 | G87: 否 | H87: 2048 | I87: 2048 | J87: 4 | K87: 1136.85 | L87: 48.86 | M87: 80.98 | N87: 161.95 | O87: 101.16 | P87: 20.245 | Q87: 20.46663938 | T87: 2026.2 | U87: 刘玉升
A88: Qwen3-14B | B88: BW100 | C88: 1 | D88: float16 | E88: 0.9.2 | F88: V0 | G88: 否 | H88: 2048 | I88: 2048 | J88: 8 | K88: 1703.95 | L88: 51.66 | M88: 152.47 | N88: 304.48 | O88: 107.46 | P88: 19.05875 | Q88: 19.35733643 | T88: 2026.2 | U88: 刘玉升
A89: Qwen3-14B | B89: BW100 | C89: 1 | D89: float16 | E89: 0.9.2 | F89: V0 | G89: 否 | H89: 2048 | I89: 2048 | J89: 16 | K89: 3882.88 | L89: 57.51 | M89: 269.43 | N89: 537.07 | O89: 121.62 | P89: 16.839375 | Q89: 17.3882803 | T89: 2026.2 | U89: 刘玉升
A90: Qwen3-14B | B90: BW100 | C90: 1 | D90: float16 | E90: 0.9.2 | F90: V0 | G90: 否 | H90: 2048 | I90: 2048 | J90: 32 | K90: 6775.57 | L90: 68.22 | M90: 447.56 | N90: 893.25 | O90: 146.43 | P90: 13.98625 | Q90: 14.65845793 | T90: 2026.2 | U90: 刘玉升
A91: Qwen3-14B | B91: BW100 | C91: 1 | D91: float16 | E91: 0.9.2 | F91: V0 | G91: 否 | H91: 2048 | I91: 2048 | J91: 64 | K91: 11397.92 | L91: 103.23 | M91: 463.63 | N91: 925.24 | O91: 282.71 | P91: 7.24421875 | Q91: 9.687106461 | T91: 2026.2 | U91: 刘玉升
A92: Qwen3-14B | B92: BW100 | C92: 1 | D92: float16 | E92: 0.9.2 | F92: V0 | G92: 否 | H92: 2048 | I92: 2048 | J92: 128 | K92: 105452.35 | L92: 131.17 | M92: 467.29 | N92: 933.07 | O92: 560.98 | P92: 3.650703125 | Q92: 7.623694442 | T92: 2026.2 | U92: 刘玉升
A93: Qwen3-14B | B93: BW100 | C93: 1 | D93: float16 | E93: 0.9.2 | F93: V0 | G93: 否 | H93: 4096 | I93: 1024 | J93: 1 | K93: 612.26 | L93: 47.59 | M93: 20.77 | N93: 103.86 | O93: 49.3 | P93: 20.77 | Q93: 21.01281782 | T93: 2026.2 | U93: 刘玉升
A94: Qwen3-14B | B94: BW100 | C94: 1 | D94: float16 | E94: 0.9.2 | F94: V0 | G94: 否 | H94: 4096 | I94: 1024 | J94: 4 | K94: 1776.17 | L94: 50.4 | M94: 76.79 | N94: 383.82 | O94: 53.34 | P94: 19.1975 | Q94: 19.84126984 | T94: 2026.2 | U94: 刘玉升
A95: Qwen3-14B | B95: BW100 | C95: 1 | D95: float16 | E95: 0.9.2 | F95: V0 | G95: 否 | H95: 4096 | I95: 1024 | J95: 8 | K95: 3847.35 | L95: 55.01 | M95: 136.25 | N95: 681.13 | O95: 60.12 | P95: 17.03125 | Q95: 18.178513 | T95: 2026.2 | U95: 刘玉升
A96: Qwen3-14B | B96: BW100 | C96: 1 | D96: float16 | E96: 0.9.2 | F96: V0 | G96: 否 | H96: 4096 | I96: 1024 | J96: 16 | K96: 6906.41 | L96: 64.6 | M96: 224.44 | N96: 1120.1 | O96: 73 | P96: 14.0275 | Q96: 15.47987616 | T96: 2026.2 | U96: 刘玉升
A97: Qwen3-14B | B97: BW100 | C97: 1 | D97: float16 | E97: 0.9.2 | F97: V0 | G97: 否 | H97: 4096 | I97: 1024 | J97: 32 | K97: 11819.19 | L97: 83.25 | M97: 337.84 | N97: 1687.63 | O97: 96.99 | P97: 10.5575 | Q97: 12.01201201 | T97: 2026.2 | U97: 刘玉升
A98: Qwen3-14B | B98: BW100 | C98: 1 | D98: float16 | E98: 0.9.2 | F98: V0 | G98: 否 | H98: 4096 | I98: 1024 | J98: 64 | K98: 50881.81 | L98: 95.27 | M98: 325.98 | N98: 1627.77 | O98: 201.04 | P98: 5.0934375 | Q98: 10.49648368 | T98: 2026.2 | U98: 刘玉升
A99: Qwen3-14B | B99: BW100 | C99: 1 | D99: float16 | E99: 0.9.2 | F99: V0 | G99: 否 | H99: 4096 | I99: 1024 | J99: 128 | K99: 139134.25 | L99: 102.05 | M99: 320.85 | N99: 1602.32 | O99: 408.51 | P99: 2.506640625 | Q99: 9.799118079 | T99: 2026.2 | U99: 刘玉升
A100: Qwen3-14B | B100: BW100 | C100: 1 | D100: float16 | E100: 0.9.2 | F100: V0 | G100: 否 | H100: 16384 | I100: 1024 | J100: 1 | K100: 2961.37 | L100: 47.84 | M100: 19.73 | N100: 335.42 | O100: 51.9 | P100: 19.73 | Q100: 20.90301003 | T100: 2026.2 | U100: 刘玉升
A101: Qwen3-14B | B101: BW100 | C101: 1 | D101: float16 | E101: 0.9.2 | F101: V0 | G101: 否 | H101: 16384 | I101: 1024 | J101: 4 | K101: 8137.64 | L101: 60.67 | M101: 58.34 | N101: 991.84 | O101: 70.2 | P101: 14.585 | Q101: 16.48261085 | T101: 2026.2 | U101: 刘玉升
A102: Qwen3-14B | B102: BW100 | C102: 1 | D102: float16 | E102: 0.9.2 | F102: V0 | G102: 否 | H102: 16384 | I102: 1024 | J102: 8 | K102: 14429.13 | L102: 76.24 | M102: 88.63 | N102: 1506.74 | O102: 92.43 | P102: 11.07875 | Q102: 13.11647429 | T102: 2026.2 | U102: 刘玉升
A103: Qwen3-14B | B103: BW100 | C103: 1 | D103: float16 | E103: 0.9.2 | F103: V0 | G103: 否 | H103: 16384 | I103: 1024 | J103: 16 | K103: 51622.64 | L103: 84.5 | M103: 86.22 | N103: 1465.66 | O103: 190.04 | P103: 5.38875 | Q103: 11.83431953 | T103: 2026.2 | U103: 刘玉升
A104: Qwen3-14B | B104: BW100 | C104: 1 | D104: float16 | E104: 0.9.2 | F104: V0 | G104: 否 | H104: 16384 | I104: 1024 | J104: 32 | K104: 130440.57 | L104: 92.78 | M104: 90.49 | N104: 1538.3 | O104: 362.13 | P104: 2.8278125 | Q104: 10.77818495 | T104: 2026.2 | U104: 刘玉升
A105: Qwen3-14B | B105: BW100 | C105: 1 | D105: float16 | E105: 0.9.2 | F105: V0 | G105: 否 | H105: 16384 | I105: 1024 | J105: 64 | K105: 300188.78 | L105: 92.92 | M105: 91.16 | N105: 1549.67 | O105: 718.94 | P105: 1.424375 | Q105: 10.76194576 | T105: 2026.2 | U105: 刘玉升
A106: Qwen3-14B | B106: BW100 | C106: 1 | D106: float16 | E106: 0.9.2 | F106: V0 | G106: 否 | H106: 16384 | I106: 1024 | J106: 128 | K106: 639321.36 | L106: 93.49 | M106: 94.11 | N106: 1599.95 | O106: 1392.68 | P106: 0.735234375 | Q106: 10.69633116 | T106: 2026.2 | U106: 刘玉升
A107: Qwen3-14B | B107: BW100 | C107: 2 | D107: float16 | E107: 0.9.2 | F107: V0 | G107: 否 | H107: 512 | I107: 512 | J107: 1 | K107: 104.95 | L107: 32.29 | M107: 30.83 | N107: 61.66 | O107: 16.61 | P107: 30.83 | Q107: 30.96934035 | T107: 2026.2 | U107: 刘玉升
A108: Qwen3-14B | B108: BW100 | C108: 2 | D108: float16 | E108: 0.9.2 | F108: V0 | G108: 否 | H108: 512 | I108: 512 | J108: 4 | K108: 228.62 | L108: 32.69 | M108: 120.94 | N108: 241.88 | O108: 16.93 | P108: 30.235 | Q108: 30.59039462 | T108: 2026.2 | U108: 刘玉升
A109: Qwen3-14B | B109: BW100 | C109: 2 | D109: float16 | E109: 0.9.2 | F109: V0 | G109: 否 | H109: 512 | I109: 512 | J109: 8 | K109: 396.34 | L109: 34.12 | M109: 229.65 | N109: 459.23 | O109: 17.84 | P109: 28.70625 | Q109: 29.30832356 | T109: 2026.2 | U109: 刘玉升
A110: Qwen3-14B | B110: BW100 | C110: 2 | D110: float16 | E110: 0.9.2 | F110: V0 | G110: 否 | H110: 512 | I110: 512 | J110: 16 | K110: 638.71 | L110: 37.62 | M110: 412.38 | N110: 824.66 | O110: 19.87 | P110: 25.77375 | Q110: 26.58160553 | T110: 2026.2 | U110: 刘玉升
A111: Qwen3-14B | B111: BW100 | C111: 2 | D111: float16 | E111: 0.9.2 | F111: V0 | G111: 否 | H111: 512 | I111: 512 | J111: 32 | K111: 1448.61 | L111: 43.31 | M111: 694.6 | N111: 1389.12 | O111: 23.59 | P111: 21.70625 | Q111: 23.08935581 | T111: 2026.2 | U111: 刘玉升
A112: Qwen3-14B | B112: BW100 | C112: 2 | D112: float16 | E112: 0.9.2 | F112: V0 | G112: 否 | H112: 512 | I112: 512 | J112: 64 | K112: 2633.7 | L112: 58.66 | M112: 1004.45 | N112: 2008.83 | O112: 32.62 | P112: 15.69453125 | Q112: 17.04739175 | T112: 2026.2 | U112: 刘玉升
A113: Qwen3-14B | B113: BW100 | C113: 2 | D113: float16 | E113: 0.9.2 | F113: V0 | G113: 否 | H113: 512 | I113: 512 | J113: 128 | K113: 4281.22 | L113: 98.18 | M113: 1202.93 | N113: 2405.44 | O113: 54.48 | P113: 9.397890625 | Q113: 10.1853738 | T113: 2026.2 | U113: 刘玉升
A114: Qwen3-14B | B114: BW100 | C114: 2 | D114: float16 | E114: 0.9.2 | F114: V0 | G114: 否 | H114: 1024 | I114: 1024 | J114: 1 | K114: 146.99 | L114: 33.24 | M114: 29.99 | N114: 59.97 | O114: 34.15 | P114: 29.99 | Q114: 30.08423586 | T114: 2026.2 | U114: 刘玉升
A115: Qwen3-14B | B115: BW100 | C115: 2 | D115: float16 | E115: 0.9.2 | F115: V0 | G115: 否 | H115: 1024 | I115: 1024 | J115: 4 | K115: 393.83 | L115: 33.59 | M115: 117.83 | N115: 235.66 | O115: 34.76 | P115: 29.4575 | Q115: 29.77076511 | T115: 2026.2 | U115: 刘玉升
A116: Qwen3-14B | B116: BW100 | C116: 2 | D116: float16 | E116: 0.9.2 | F116: V0 | G116: 否 | H116: 1024 | I116: 1024 | J116: 8 | K116: 617.96 | L116: 35.76 | M116: 220.2 | N116: 440.38 | O116: 37.2 | P116: 27.525 | Q116: 27.96420582 | T116: 2026.2 | U116: 刘玉升
A117: Qwen3-14B | B117: BW100 | C117: 2 | D117: float16 | E117: 0.9.2 | F117: V0 | G117: 否 | H117: 1024 | I117: 1024 | J117: 16 | K117: 1316.71 | L117: 38.7 | M117: 400.47 | N117: 800.45 | O117: 40.91 | P117: 25.029375 | Q117: 25.83979328 | T117: 2026.2 | U117: 刘玉升
A118: Qwen3-14B | B118: BW100 | C118: 2 | D118: float16 | E118: 0.9.2 | F118: V0 | G118: 否 | H118: 1024 | I118: 1024 | J118: 32 | K118: 2783.25 | L118: 44.39 | M118: 679.84 | N118: 1359.25 | O118: 48.2 | P118: 21.245 | Q118: 22.52759631 | T118: 2026.2 | U118: 刘玉升
A119: Qwen3-14B | B119: BW100 | C119: 2 | D119: float16 | E119: 0.9.2 | F119: V0 | G119: 否 | H119: 1024 | I119: 1024 | J119: 64 | K119: 4255.93 | L119: 60.89 | M119: 984.58 | N119: 1965.82 | O119: 66.56 | P119: 15.3840625 | Q119: 16.42305797 | T119: 2026.2 | U119: 刘玉升
A120: Qwen3-14B | B120: BW100 | C120: 2 | D120: float16 | E120: 0.9.2 | F120: V0 | G120: 否 | H120: 1024 | I120: 1024 | J120: 128 | K120: 7104.5 | L120: 100.49 | M120: 1192.26 | N120: 2381.56 | O120: 109.94 | P120: 9.31453125 | Q120: 9.951238929 | T120: 2026.2 | U120: 刘玉升
A121: Qwen3-14B | B121: BW100 | C121: 2 | D121: float16 | E121: 0.9.2 | F121: V0 | G121: 否 | H121: 2048 | I121: 2048 | J121: 1 | K121: 233.74 | L121: 33.01 | M121: 30.21 | N121: 60.41 | O121: 67.8 | P121: 30.21 | Q121: 30.29385035 | T121: 2026.2 | U121: 刘玉升
A122: Qwen3-14B | B122: BW100 | C122: 2 | D122: float16 | E122: 0.9.2 | F122: V0 | G122: 否 | H122: 2048 | I122: 2048 | J122: 4 | K122: 604.28 | L122: 34.29 | M122: 115.72 | N122: 231.44 | O122: 70.79 | P122: 28.93 | Q122: 29.16302129 | T122: 2026.2 | U122: 刘玉升
A123: Qwen3-14B | B123: BW100 | C123: 2 | D123: float16 | E123: 0.9.2 | F123: V0 | G123: 否 | H123: 2048 | I123: 2048 | J123: 8 | K123: 1339.23 | L123: 36.08 | M123: 217.91 | N123: 435.16 | O123: 75.19 | P123: 27.23875 | Q123: 27.71618625 | T123: 2026.2 | U123: 刘玉升
A124: Qwen3-14B | B124: BW100 | C124: 2 | D124: float16 | E124: 0.9.2 | F124: V0 | G124: 否 | H124: 2048 | I124: 2048 | J124: 16 | K124: 2738.12 | L124: 39.67 | M124: 390.36 | N124: 778.12 | O124: 83.94 | P124: 24.3975 | Q124: 25.20796572 | T124: 2026.2 | U124: 刘玉升
A125: Qwen3-14B | B125: BW100 | C125: 2 | D125: float16 | E125: 0.9.2 | F125: V0 | G125: 否 | H125: 2048 | I125: 2048 | J125: 32 | K125: 4267.17 | L125: 45.8 | M125: 668.59 | N125: 1334.4 | O125: 98.02 | P125: 20.8934375 | Q125: 21.83406114 | T125: 2026.2 | U125: 刘玉升
A126: Qwen3-14B | B126: BW100 | C126: 2 | D126: float16 | E126: 0.9.2 | F126: V0 | G126: 否 | H126: 2048 | I126: 2048 | J126: 64 | K126: 7147.33 | L126: 63.3 | M126: 958.61 | N126: 1913.06 | O126: 136.73 | P126: 14.97828125 | Q126: 15.79778831 | T126: 2026.2 | U126: 刘玉升
A127: Qwen3-14B | B127: BW100 | C127: 2 | D127: float16 | E127: 0.9.2 | F127: V0 | G127: 否 | H127: 2048 | I127: 2048 | J127: 128 | K127: 12960.39 | L127: 103.8 | M127: 1162.7 | N127: 2321.63 | O127: 225.46 | P127: 9.08359375 | Q127: 9.633911368 | T127: 2026.2 | U127: 刘玉升
A128: Qwen3-14B | B128: BW100 | C128: 2 | D128: float16 | E128: 0.9.2 | F128: V0 | G128: 否 | H128: 4096 | I128: 1024 | J128: 1 | K128: 415.85 | L128: 33.46 | M128: 29.56 | N128: 147.79 | O128: 34.64 | P128: 29.56 | Q128: 29.88643156 | T128: 2026.2 | U128: 刘玉升
A129: Qwen3-14B | B129: BW100 | C129: 2 | D129: float16 | E129: 0.9.2 | F129: V0 | G129: 否 | H129: 4096 | I129: 1024 | J129: 4 | K129: 1255.53 | L129: 35.22 | M129: 109.85 | N129: 549.01 | O129: 37.29 | P129: 27.4625 | Q129: 28.39295855 | T129: 2026.2 | U129: 刘玉升
A130: Qwen3-14B | B130: BW100 | C130: 2 | D130: float16 | E130: 0.9.2 | F130: V0 | G130: 否 | H130: 4096 | I130: 1024 | J130: 8 | K130: 2669.55 | L130: 38.16 | M130: 196.39 | N130: 981.77 | O130: 41.71 | P130: =M130/J130 -> 24.54875 | Q130: =1000/L130 -> 26.20545073 | T130: 2026.2 | U130: 刘玉升
A131: Qwen3-14B | B131: BW100 | C131: 2 | D131: float16 | E131: 0.9.2 | F131: V0 | G131: 否 | H131: 4096 | I131: 1024 | J131: 16 | K131: 4320.44 | L131: 44.36 | M131: 329.6 | N131: 1644.92 | O131: 49.71 | P131: 20.6 | Q131: 22.54283138 | T131: 2026.2 | U131: 刘玉升
A132: Qwen3-14B | B132: BW100 | C132: 2 | D132: float16 | E132: 0.9.2 | F132: V0 | G132: 否 | H132: 4096 | I132: 1024 | J132: 32 | K132: 7354.44 | L132: 55.41 | M132: 511.64 | N132: 2555.81 | O132: 64.05 | P132: 15.98875 | Q132: 18.04728388 | T132: 2026.2 | U132: 刘玉升
A133: Qwen3-14B | B133: BW100 | C133: 2 | D133: float16 | E133: 0.9.2 | F133: V0 | G133: 否 | H133: 4096 | I133: 1024 | J133: 64 | K133: 13291.14 | L133: 82.2 | M133: 672.84 | N133: 3359.82 | O133: 97.4 | P133: 10.513125 | Q133: 12.16545012 | T133: 2026.2 | U133: 刘玉升
A134: Qwen3-14B | B134: BW100 | C134: 2 | D134: float16 | E134: 0.9.2 | F134: V0 | G134: 否 | H134: 4096 | I134: 1024 | J134: 128 | K134: 25678.5 | L134: 139.23 | M134: 647.06 | N134: 3231.4 | O134: 202.57 | P134: 5.05515625 | Q134: 7.182360124 | T134: 2026.2 | U134: 刘玉升
A135: Qwen3-14B | B135: BW100 | C135: 2 | D135: float16 | E135: 0.9.2 | F135: V0 | G135: 否 | H135: 16384 | I135: 1024 | J135: 1 | K135: 1872.01 | L135: 33.94 | M135: 27.98 | N135: 475.66 | O135: 36.6 | P135: 27.98 | Q135: 29.46375958 | T135: 2026.2 | U135: 刘玉升
A136: Qwen3-14B | B136: BW100 | C136: 2 | D136: float16 | E136: 0.9.2 | F136: V0 | G136: 否 | H136: 16384 | I136: 1024 | J136: 4 | K136: 4982.29 | L136: 40.14 | M136: 88.95 | N136: 1512.12 | O136: 46.05 | P136: 22.2375 | Q136: 24.91280518 | T136: 2026.2 | U136: 刘玉升
A137: Qwen3-14B | B137: BW100 | C137: 2 | D137: float16 | E137: 0.9.2 | F137: V0 | G137: 否 | H137: 16384 | I137: 1024 | J137: 8 | K137: 8739.92 | L137: 50.12 | M137: 136.5 | N137: 2320.54 | O137: 60.01 | P137: 17.0625 | Q137: 19.95211492 | T137: 2026.2 | U137: 刘玉升
A138: Qwen3-14B | B138: BW100 | C138: 2 | D138: float16 | E138: 0.9.2 | F138: V0 | G138: 否 | H138: 16384 | I138: 1024 | J138: 16 | K138: 15924.08 | L138: 68.64 | M138: 190.18 | N138: 3233.1 | O138: 86.15 | P138: 11.88625 | Q138: 14.56876457 | T138: 2026.2 | U138: 刘玉升
A139: Qwen3-14B | B139: BW100 | C139: 2 | D139: float16 | E139: 0.9.2 | F139: V0 | G139: 否 | H139: 16384 | I139: 1024 | J139: 32 | K139: 30109.77 | L139: 103.84 | M139: 240.31 | N139: 4085.35 | O139: 136.35 | P139: 7.5096875 | Q139: 9.630200308 | T139: 2026.2 | U139: 刘玉升
A140: Qwen3-14B | B140: BW100 | C140: 2 | D140: float16 | E140: 0.9.2 | F140: V0 | G140: 否 | H140: 16384 | I140: 1024 | J140: 64 | K140: 98834.11 | L140: 105.45 | M140: 238.25 | N140: 4050.19 | O140: 275.08 | P140: 3.72265625 | Q140: 9.483167378 | T140: 2026.2 | U140: 刘玉升
A141: Qwen3-14B | B141: BW100 | C141: 2 | D141: float16 | E141: 0.9.2 | F141: V0 | G141: 否 | H141: 16384 | I141: 1024 | J141: 128 | K141: 236536.93 | L141: 106.32 | M141: 237.71 | N141: 4041.03 | O141: 551.4 | P141: 1.857109375 | Q141: 9.405568096 | T141: 2026.2 | U141: 刘玉升
A142: Qwen3-30B-A3B | B142: BW100 | C142: 2 | D142: float16 | E142: 0.9.2 | F142: V0 | G142: 否 | H142: 512 | I142: 512 | J142: 1 | K142: 92.05 | L142: 16.41 | M142: 60.38 | N142: 120.76 | O142: 8.48 | P142: 60.38 | Q142: 60.93845216 | R142: vllm:0.9.2-ubuntu22.04-dtk25.04.2-1226-das1.7-py3.10-20251226 | S142: Hygon C86 7490 64-core Processor*2 /DDR5 4800 64G*24 /480G 2.5 SATA 6Gb R SSD*2 /960G 2.5 SATA 6Gb R SSD*4/7.68T*4/BCM 9560-8i Tri-Mode RAID x1/双口1G RJ45网卡x1/DCU K100-AI x8(120CU)/MLX MCX653105A-HDAT 1-port 200G HDR QSFP56 HCA*1/2700W电源模块*4 | T142: 2026.02 | U142: 刘玉升
A143: Qwen3-30B-A3B | B143: BW100 | C143: 2 | D143: float16 | E143: 0.9.2 | F143: V0 | G143: 否 | H143: 512 | I143: 512 | J143: 4 | K143: 197.99 | L143: 25.72 | M143: 153.5 | N143: 307 | O143: 13.34 | P143: 38.375 | Q143: 38.88024883 | T143: 2026.02 | U143: 刘玉升
A144: Qwen3-30B-A3B | B144: BW100 | C144: 2 | D144: float16 | E144: 0.9.2 | F144: V0 | G144: 否 | H144: 512 | I144: 512 | J144: 8 | K144: 941.99 | L144: 32.56 | M144: 232.95 | N144: 465.85 | O144: 17.58 | P144: 29.11875 | Q144: 30.71253071 | T144: 2026.02 | U144: 刘玉升
A145: Qwen3-30B-A3B | B145: BW100 | C145: 2 | D145: float16 | E145: 0.9.2 | F145: V0 | G145: 否 | H145: 512 | I145: 512 | J145: 16 | K145: 706.86 | L145: 35.51 | M145: 434.4 | N145: 868.68 | O145: 18.86 | P145: 27.15 | Q145: 28.16108139 | T145: 2026.02 | U145: 刘玉升
A146: Qwen3-30B-A3B | B146: BW100 | C146: 2 | D146: float16 | E146: 0.9.2 | F146: V0 | G146: 否 | H146: 512 | I146: 512 | J146: 32 | K146: 1497.39 | L146: 45.6 | M146: 660.45 | N146: 1320.81 | O146: 24.81 | P146: 20.6390625 | Q146: 21.92982456 | T146: 2026.02 | U146: 刘玉升
A147: Qwen3-30B-A3B | B147: BW100 | C147: 2 | D147: float16 | E147: 0.9.2 | F147: V0 | G147: 否 | H147: 512 | I147: 512 | J147: 64 | K147: 2852.73 | L147: 64.49 | M147: 914.63 | N147: 1829.2 | O147: 35.83 | P147: 14.29109375 | Q147: 15.50628004 | T147: 2026.02 | U147: 刘玉升
A148: Qwen3-30B-A3B | B148: BW100 | C148: 2 | D148: float16 | E148: 0.9.2 | F148: V0 | G148: 否 | H148: 512 | I148: 512 | J148: 128 | K148: 4581.51 | L148: 101.81 | M148: 1157.2 | N148: 2314 | O148: 56.63 | P148: 9.040625 | Q148: 9.822217857 | T148: 2026.02 | U148: 刘玉升
A149: Qwen3-30B-A3B | B149: BW100 | C149: 2 | D149: float16 | E149: 0.9.2 | F149: V0 | G149: 否 | H149: 1024 | I149: 1024 | J149: 1 | K149: 106.99 | L149: 16.52 | M149: 60.21 | N149: 120.41 | O149: 17.01 | P149: 60.21 | Q149: 60.53268765 | T149: 2026.02 | U149: 刘玉升
A150: Qwen3-30B-A3B | B150: BW100 | C150: 2 | D150: float16 | E150: 0.9.2 | F150: V0 | G150: 否 | H150: 1024 | I150: 1024 | J150: 4 | K150: 289.85 | L150: 24.37 | M150: 162.42 | N150: 324.84 | O150: 25.22 | P150: 40.605 | Q150: 41.03405827 | T150: 2026.02 | U150: 刘玉升
A151: Qwen3-30B-A3B | B151: BW100 | C151: 2 | D151: float16 | E151: 0.9.2 | F151: V0 | G151: 否 | H151: 1024 | I151: 1024 | J151: 8 | K151: 634.13 | L151: 32.03 | M151: 245.21 | N151: 490.4 | O151: 33.41 | P151: 30.65125 | Q151: 31.22073057 | T151: 2026.02 | U151: 刘玉升
A152: Qwen3-30B-A3B | B152: BW100 | C152: 2 | D152: float16 | E152: 0.9.2 | F152: V0 | G152: 否 | H152: 1024 | I152: 1024 | J152: 16 | K152: 1375.84 | L152: 34.87 | M152: 442.16 | N152: 883.78 | O152: 37.05 | P152: 27.635 | Q152: 28.67794666 | T152: 2026.02 | U152: 刘玉升
A153: Qwen3-30B-A3B | B153: BW100 | C153: 2 | D153: float16 | E153: 0.9.2 | F153: V0 | G153: 否 | H153: 1024 | I153: 1024 | J153: 32 | K153: 2733.31 | L153: 47.11 | M153: 643.38 | N153: 1286.34 | O153: 50.93 | P153: 20.105625 | Q153: 21.22691573 | T153: 2026.02 | U153: 刘玉升
A154: Qwen3-30B-A3B | B154: BW100 | C154: 2 | D154: float16 | E154: 0.9.2 | F154: V0 | G154: 否 | H154: 1024 | I154: 1024 | J154: 64 | K154: 4424.83 | L154: 65.5 | M154: 917.32 | N154: 1831.51 | O154: 71.44 | P154: 14.333125 | Q154: 15.26717557 | T154: 2026.02 | U154: 刘玉升
A155: Qwen3-30B-A3B | B155: BW100 | C155: 2 | D155: float16 | E155: 0.9.2 | F155: V0 | G155: 否 | H155: 1024 | I155: 1024 | J155: 128 | K155: 7600.6 | L155: 102.84 | M155: 1161.6 | N155: 2320.31 | O155: 112.84 | P155: 9.075 | Q155: 9.723842863 | T155: 2026.02 | U155: 刘玉升
A156: Qwen3-30B-A3B | B156: BW100 | C156: 2 | D156: float16 | E156: 0.9.2 | F156: V0 | G156: 否 | H156: 2048 | I156: 2048 | J156: 1 | K156: 171.16 | L156: 16.84 | M156: 59.11 | N156: 118.23 | O156: 34.64 | P156: 59.11 | Q156: 59.3824228 | T156: 2026.02 | U156: 刘玉升
A157: Qwen3-30B-A3B | B157: BW100 | C157: 2 | D157: float16 | E157: 0.9.2 | F157: V0 | G157: 否 | H157: 2048 | I157: 2048 | J157: 4 | K157: 570.39 | L157: 24.37 | M157: 162.36 | N157: 324.72 | O157: 50.46 | P157: 40.59 | Q157: 41.03405827 | T157: 2026.02 | U157: 刘玉升
A158: Qwen3-30B-A3B | B158: BW100 | C158: 2 | D158: float16 | E158: 0.9.2 | F158: V0 | G158: 否 | H158: 2048 | I158: 2048 | J158: 8 | K158: 1290.4 | L158: 29.19 | M158: 268.35 | N158: 535.9 | O158: 61.05 | P158: 33.54375 | Q158: 34.25830764 | T158: 2026.02 | U158: 刘玉升
A159: Qwen3-30B-A3B | B159: BW100 | C159: 2 | D159: float16 | E159: 0.9.2 | F159: V0 | G159: 否 | H159: 2048 | I159: 2048 | J159: 16 | K159: 2809.76 | L159: 33.53 | M159: 458.57 | N159: 914.09 | O159: 71.46 | P159: 28.660625 | Q159: 29.82403817 | T159: 2026.02 | U159: 刘玉升
A160: Qwen3-30B-A3B | B160: BW100 | C160: 2 | D160: float16 | E160: 0.9.2 | F160: V0 | G160: 否 | H160: 2048 | I160: 2048 | J160: 32 | K160: 4499.97 | L160: 43.58 | M160: 699.22 | N160: 1395.54 | O160: 93.73 | P160: 21.850625 | Q160: 22.94630564 | T160: 2026.02 | U160: 刘玉升
A161: Qwen3-30B-A3B | B161: BW100 | C161: 2 | D161: float16 | E161: 0.9.2 | F161: V0 | G161: 否 | H161: 2048 | I161: 2048 | J161: 64 | K161: 7579.39 | L161: 63.24 | M161: 956.34 | N161: 1908.53 | O161: 137.06 | P161: 14.9428125 | Q161: 15.81277672 | T161: 2026.02 | U161: 刘玉升
A162: Qwen3-30B-A3B | B162: BW100 | C162: 2 | D162: float16 | E162: 0.9.2 | F162: V0 | G162: 否 | H162: 2048 | I162: 2048 | J162: 128 | K162: 13830.81 | L162: 101.79 | M162: 1179.57 | N162: 2355.32 | O162: 222.24 | P162: 9.215390625 | Q162: 9.824147755 | T162: 2026.02 | U162: 刘玉升
A163: Qwen3-30B-A3B | B163: BW100 | C163: 2 | D163: float16 | E163: 0.9.2 | F163: V0 | G163: 否 | H163: 4096 | I163: 1024 | J163: 1 | K163: 362.93 | L163: 16.83 | M163: 58.26 | N163: 291.28 | O163: 17.58 | P163: 58.26 | Q163: 59.41770648 | T163: 2026.02 | U163: 刘玉升
A164: Qwen3-30B-A3B | B164: BW100 | C164: 2 | D164: float16 | E164: 0.9.2 | F164: V0 | G164: 否 | H164: 4096 | I164: 1024 | J164: 4 | K164: 1185.02 | L164: 24.84 | M164: 153.98 | N164: 769.58 | O164: 26.6 | P164: 38.495 | Q164: 40.25764895 | T164: 2026.02 | U164: 刘玉升
A165: Qwen3-30B-A3B | B165: BW100 | C165: 2 | D165: float16 | E165: 0.9.2 | F165: V0 | G165: 否 | H165: 4096 | I165: 1024 | J165: 8 | K165: 2670.62 | L165: 28.6 | M165: 256.56 | N165: 1282.53 | O165: 31.93 | P165: 32.07 | Q165: 34.96503497 | T165: 2026.02 | U165: 刘玉升
A166: Qwen3-30B-A3B | B166: BW100 | C166: 2 | D166: float16 | E166: 0.9.2 | F166: V0 | G166: 否 | H166: 4096 | I166: 1024 | J166: 16 | K166: 4493.31 | L166: 36.8 | M166: 388.74 | N166: 1940.07 | O166: 42.15 | P166: 24.29625 | Q166: 27.17391304 | T166: 2026.02 | U166: 刘玉升
A167: Qwen3-30B-A3B | B167: BW100 | C167: 2 | D167: float16 | E167: 0.9.2 | F167: V0 | G167: 否 | H167: 4096 | I167: 1024 | J167: 32 | K167: 7706.86 | L167: 51.35 | M167: 543.93 | N167: 2717.09 | O167: 60.24 | P167: 16.9978125 | Q167: 19.47419669 | T167: 2026.02 | U167: 刘玉升
A168: Qwen3-30B-A3B | B168: BW100 | C168: 2 | D168: float16 | E168: 0.9.2 | F168: V0 | G168: 否 | H168: 4096 | I168: 1024 | J168: 64 | K168: 14045.95 | L168: 78.32 | M168: 695.83 | N168: 3474.61 | O168: 94.18 | P168: 10.87234375 | Q168: 12.76813075 | T168: 2026.02 | U168: 刘玉升
A169: Qwen3-30B-A3B | B169: BW100 | C169: 2 | D169: float16 | E169: 0.9.2 | F169: V0 | G169: 否 | H169: 4096 | I169: 1024 | J169: 128 | K169: 26695.8 | L169: 129.09 | M169: 817.86 | N169: 4084.4 | O169: 160.26 | P169: 6.38953125 | Q169: 7.746533426 | T169: 2026.02 | U169: 刘玉升
A170: Qwen3-30B-A3B | B170: BW100 | C170: 2 | D170: float16 | E170: 0.9.2 | F170: V0 | G170: 否 | H170: 16384 | I170: 1024 | J170: 1 | K170: 1942.13 | L170: 17.14 | M170: 52.57 | N170: 893.68 | O170: 19.48 | P170: 52.57 | Q170: 58.34305718 | T170: 2026.02 | U170: 刘玉升
A171: Qwen3-30B-A3B | B171: BW100 | C171: 2 | D171: float16 | E171: 0.9.2 | F171: V0 | G171: 否 | H171: 16384 | I171: 1024 | J171: 4 | K171: 5070.3 | L171: 27.79 | M171: 122.27 | N171: 2078.52 | O171: 33.5 | P171: 30.5675 | Q171: 35.98416697 | T171: 2026.02 | U171: 刘玉升
A172: Qwen3-30B-A3B | B172: BW100 | C172: 2 | D172: float16 | E172: 0.9.2 | F172: V0 | G172: 否 | H172: 16384 | I172: 1024 | J172: 8 | K172: 9032.04 | L172: 39.81 | M172: 164.61 | N172: 2798.35 | O172: 49.77 | P172: 20.57625 | Q172: 25.11931675 | T172: 2026.02 | U172: 刘玉升
A173: Qwen3-30B-A3B | B173: BW100 | C173: 2 | D173: float16 | E173: 0.9.2 | F173: V0 | G173: 否 | H173: 16384 | I173: 1024 | J173: 16 | K173: 16643.73 | L173: 56.07 | M173: 221.37 | N173: 3763.28 | O173: 74.01 | P173: 13.835625 | Q173: 17.8348493 | T173: 2026.02 | U173: 刘玉升
A174: Qwen3-30B-A3B | B174: BW100 | C174: 2 | D174: float16 | E174: 0.9.2 | F174: V0 | G174: 否 | H174: 16384 | I174: 1024 | J174: 32 | K174: 31503.5 | L174: 89.69 | M174: 265.81 | N174: 4518.73 | O174: 123.28 | P174: 8.3065625 | Q174: 11.149515 | T174: 2026.02 | U174: 刘玉升
A175: Qwen3-30B-A3B | B175: BW100 | C175: 2 | D175: float16 | E175: 0.9.2 | F175: V0 | G175: 否 | H175: 16384 | I175: 1024 | J175: 64 | K175: 91078.64 | L175: 97.02 | M175: 257.13 | N175: 4371.28 | O175: 254.87 | P175: 4.01765625 | Q175: 10.30715316 | T175: 2026.02 | U175: 刘玉升
A176: Qwen3-30B-A3B | B176: BW100 | C176: 2 | D176: float16 | E176: 0.9.2 | F176: V0 | G176: 否 | H176: 16384 | I176: 1024 | J176: 128 | K176: 210949.74 | L176: 99.87 | M176: 260.84 | N176: 4434.2 | O176: 502.51 | P176: 2.0378125 | Q176: 10.01301692 | T176: 2026.02 | U176: 刘玉升
A177: Qwen3-30B-A3B | B177: BW100 | C177: 4 | D177: float16 | E177: 0.9.2 | F177: V0 | G177: 否 | H177: 512 | I177: 512 | J177: 1 | K177: 91.02 | L177: 15.26 | M177: 64.89 | N177: 129.78 | O177: 7.89 | P177: 64.89 | Q177: 65.53079948 | T177: 2026.02 | U177: 刘玉升
A178: Qwen3-30B-A3B | B178: BW100 | C178: 4 | D178: float16 | E178: 0.9.2 | F178: V0 | G178: 否 | H178: 512 | I178: 512 | J178: 4 | K178: 178.7 | L178: 19.93 | M178: 197.61 | N178: 395.22 | O178: 10.36 | P178: 49.4025 | Q178: 50.17561465 | T178: 2026.02 | U178: 刘玉升
A179: Qwen3-30B-A3B | B179: BW100 | C179: 4 | D179: float16 | E179: 0.9.2 | F179: V0 | G179: 否 | H179: 512 | I179: 512 | J179: 8 | K179: 785.68 | L179: 27.45 | M179: 276.43 | N179: 552.79 | O179: 14.82 | P179: 34.55375 | Q179: 36.4298725 | T179: 2026.02 | U179: 刘玉升
A180: Qwen3-30B-A3B | B180: BW100 | C180: 4 | D180: float16 | E180: 0.9.2 | F180: V0 | G180: 否 | H180: 512 | I180: 512 | J180: 16 | K180: 492.18 | L180: 29.31 | M180: 529.37 | N180: 1058.6 | O180: 15.48 | P180: 33.085625 | Q180: 34.11804845 | T180: 2026.02 | U180: 刘玉升
A181: Qwen3-30B-A3B | B181: BW100 | C181: 4 | D181: float16 | E181: 0.9.2 | F181: V0 | G181: 否 | H181: 512 | I181: 512 | J181: 32 | K181: 974.88 | L181: 35.06 | M181: 866.9 | N181: 1733.7 | O181: 18.9 | P181: 27.090625 | Q181: 28.5225328 | T181: 2026.02 | U181: 刘玉升
A182: Qwen3-30B-A3B | B182: BW100 | C182: 4 | D182: float16 | E182: 0.9.2 | F182: V0 | G182: 否 | H182: 512 | I182: 512 | J182: 64 | K182: 1841.55 | L182: 45.74 | M182: 1298.85 | N182: 2597.63 | O182: 25.23 | P182: 20.29453125 | Q182: 21.86270223 | T182: 2026.02 | U182: 刘玉升
A183: Qwen3-30B-A3B | B183: BW100 | C183: 4 | D183: float16 | E183: 0.9.2 | F183: V0 | G183: 否 | H183: 512 | I183: 512 | J183: 128 | K183: 2881.03 | L183: 68.58 | M183: 1726.78 | N183: 3452.96 | O183: 37.95 | P183: 13.49046875 | Q183: 14.58151064 | T183: 2026.02 | U183: 刘玉升
A184: Qwen3-30B-A3B | B184: BW100 | C184: 4 | D184: float16 | E184: 0.9.2 | F184: V0 | G184: 否 | H184: 1024 | I184: 1024 | J184: 1 | K184: 92 | L184: 15.22 | M184: 65.4 | N184: 130.79 | O184: 15.66 | P184: 65.4 | Q184: 65.70302234 | T184: 2026.02 | U184: 刘玉升
A185: Qwen3-30B-A3B | B185: BW100 | C185: 4 | D185: float16 | E185: 0.9.2 | F185: V0 | G185: 否 | H185: 1024 | I185: 1024 | J185: 4 | K185: 220.41 | L185: 19.63 | M185: 201.75 | N185: 403.49 | O185: 20.3 | P185: 50.4375 | Q185: 50.94243505 | T185: 2026.02 | U185: 刘玉升
A186: Qwen3-30B-A3B | B186: BW100 | C186: 4 | D186: float16 | E186: 0.9.2 | F186: V0 | G186: 否 | H186: 1024 | I186: 1024 | J186: 8 | K186: 436.1 | L186: 27.06 | M186: 291.3 | N186: 582.56 | O186: 28.12 | P186: 36.4125 | Q186: 36.954915 | T186: 2026.02 | U186: 刘玉升
A187: Qwen3-30B-A3B | B187: BW100 | C187: 4 | D187: float16 | E187: 0.9.2 | F187: V0 | G187: 否 | H187: 1024 | I187: 1024 | J187: 16 | K187: 906.28 | L187: 30.05 | M187: 517.59 | N187: 1034.54 | O187: 31.65 | P187: 32.349375 | Q187: 33.27787022 | T187: 2026.02 | U187: 刘玉升
A188: Qwen3-30B-A3B | B188: BW100 | C188: 4 | D188: float16 | E188: 0.9.2 | F188: V0 | G188: 否 | H188: 1024 | I188: 1024 | J188: 32 | K188: 1654.93 | L188: 35.6 | M188: 860.32 | N188: 1720.1 | O188: 38.09 | P188: 26.885 | Q188: 28.08988764 | T188: 2026.02 | U188: 刘玉升
A189: Qwen3-30B-A3B | B189: BW100 | C189: 4 | D189: float16 | E189: 0.9.2 | F189: V0 | G189: 否 | H189: 1024 | I189: 1024 | J189: 64 | K189: 2818.49 | L189: 46.87 | M189: 1290.37 | N189: 2576.35 | O189: 50.79 | P189: 20.16203125 | Q189: 21.33560913 | T189: 2026.02 | U189: 刘玉升
A190: Qwen3-30B-A3B | B190: BW100 | C190: 4 | D190: float16 | E190: 0.9.2 | F190: V0 | G190: 否 | H190: 1024 | I190: 1024 | J190: 128 | K190: 4735.12 | L190: 69.31 | M190: 1732.13 | N190: 3459.95 | O190: 75.67 | P190: 13.53226563 | Q190: 14.42793248 | T190: 2026.02 | U190: 刘玉升
A191: Qwen3-30B-A3B | B191: BW100 | C191: 4 | D191: float16 | E191: 0.9.2 | F191: V0 | G191: 否 | H191: 2048 | I191: 2048 | J191: 1 | K191: 133.04 | L191: 15.44 | M191: 64.52 | N191: 129.05 | O191: 31.74 | P191: 64.52 | Q191: 64.76683938 | T191: 2026.02 | U191: 刘玉升
A192: Qwen3-30B-A3B | B192: BW100 | C192: 4 | D192: float16 | E192: 0.9.2 | F192: V0 | G192: 否 | H192: 2048 | I192: 2048 | J192: 4 | K192: 394.66 | L192: 19.52 | M192: 203.05 | N192: 406.09 | O192: 40.35 | P192: 50.7625 | Q192: 51.2295082 | T192: 2026.02 | U192: 刘玉升
A193: Qwen3-30B-A3B | B193: BW100 | C193: 4 | D193: float16 | E193: 0.9.2 | F193: V0 | G193: 否 | H193: 2048 | I193: 2048 | J193: 8 | K193: 838.15 | L193: 26.28 | M193: 299.92 | N193: 598.94 | O193: 54.63 | P193: 37.49 | Q193: 38.05175038 | T193: 2026.02 | U193: 刘玉升
A194: Qwen3-30B-A3B | B194: BW100 | C194: 4 | D194: float16 | E194: 0.9.2 | F194: V0 | G194: 否 | H194: 2048 | I194: 2048 | J194: 16 | K194: 1780.75 | L194: 28.39 | M194: 546.99 | N194: 1090.35 | O194: 59.91 | P194: =M194/J194 -> 34.186875 | Q194: =1000/L194 -> 35.22367031 | T194: 2026.02 | U194: 刘玉升
A195: Qwen3-30B-A3B | B195: BW100 | C195: 4 | D195: float16 | E195: 0.9.2 | F195: V0 | G195: 否 | H195: 2048 | I195: 2048 | J195: 32 | K195: 2784.26 | L195: 34 | M195: 905.35 | N195: 1806.94 | O195: 72.39 | P195: 28.2921875 | Q195: 29.41176471 | T195: 2026.02 | U195: 刘玉升
A196: Qwen3-30B-A3B | B196: BW100 | C196: 4 | D196: float16 | E196: 0.9.2 | F196: V0 | G196: 否 | H196: 2048 | I196: 2048 | J196: 64 | K196: 5027.68 | L196: 46.08 | M196: 1319.02 | N196: 2632.3 | O196: 99.37 | P196: 20.6096875 | Q196: 21.70138889 | T196: 2026.02 | U196: 刘玉升
A197: Qwen3-30B-A3B | B197: BW100 | C197: 4 | D197: float16 | E197: 0.9.2 | F197: V0 | G197: 否 | H197: 2048 | I197: 2048 | J197: 128 | K197: 8508.42 | L197: 69.3 | M197: 1742.94 | N197: 3480.23 | O197: 150.4 | P197: 13.61671875 | Q197: 14.43001443 | T197: 2026.02 | U197: 刘玉升
A198: Qwen3-30B-A3B | B198: BW100 | C198: 4 | D198: float16 | E198: 0.9.2 | F198: V0 | G198: 否 | H198: 4096 | I198: 1024 | J198: 1 | K198: 234.54 | L198: 15.52 | M198: 63.54 | N198: 317.68 | O198: 16.12 | P198: 63.54 | Q198: 64.43298969 | T198: 2026.02 | U198: 刘玉升
A199: Qwen3-30B-A3B | B199: BW100 | C199: 4 | D199: float16 | E199: 0.9.2 | F199: V0 | G199: 否 | H199: 4096 | I199: 1024 | J199: 4 | K199: 763.8 | L199: 19.84 | M199: 194.47 | N199: 971.98 | O199: 21.06 | P199: 48.6175 | Q199: 50.40322581 | T199: 2026.02 | U199: 刘玉升
A200: Qwen3-30B-A3B | B200: BW100 | C200: 4 | D200: float16 | E200: 0.9.2 | F200: V0 | G200: 否 | H200: 4096 | I200: 1024 | J200: 8 | K200: 1659.45 | L200: 26.71 | M200: 282.66 | N200: 1413.01 | O200: 28.98 | P200: 35.3325 | Q200: 37.43916136 | T200: 2026.02 | U200: 刘玉升
... 811 more rows
